Workbook

Sheet Sheet1
A1: Approximating Parametric Curves | Z1: =n+1 -> 5
A2: With Lagrange Interpolation
B4: This graphing utility produces the graph
B5: of any curve based on the parametric functions
C6: x = f(t) and y = g(t)
B7: and its Lagrange Interpolating Polynomials
B8: on any interval from t = a to t = b.
A11: Enter the first function in terms of t: x = f(t) = | F11: sin(2*t)
A14: Enter the second function in terms of t: y = g(t) = | F14: cos(3*t)
A17: Now enter the interval for t : | AC17: =n+1 -> 5
B18: Starting value a = | D18: -1
B19: Ending value b = | D19: 1
I20: The graph of the parametric functions
J21: x = | K21: =F11 -> sin(2*t)
A22: Select the degree n (1 to 6) for the interpolating polynomial: | J22: y = | K22: =F14 -> cos(3*t)
B23: 4 | E23: n = | F23: =B23 -> 4
I24: Now trace along the parametric curve:
I25: t = | J25: =D18+2*K25*Sheet2!B12 -> 0.596 | K25: 160
I26: x = | J26: =LOOKUP(J25,Sheet2!C3:C404,Sheet2!D3:D404) -> 0.9253830272
A27: ="Enter the " & TEXT(n+1,"0")& " different interpolating points between "&TEXT(a,"##.#") & " and "& TEXT(b, "##.#") -> Enter the 5 different interpolating points between -1. and 1. | I27: y = | J27: =LOOKUP(J25,Sheet2!C3:C404,Sheet2!E3:E404) -> -0.2008945525
A28: 1 | B28: 0 | C28: =IF(Z28=0," That's outside the interval","") ->  | Z28: =IF(OR(B28<a,B28>b),0,1) -> 1
A29: 2 | B29: 1 | C29: =IF(Z29=0," That's outside the interval","") ->  | I29: Along the Lagrange Interpolating Polynomial Curve: | Z29: 1
A30: =IF(n>=2,3,"") -> 3 | B30: 2 | C30: =IF(AND(A30<=n+1,Z$30=0),"That's outside the interval",IF(A30>n+1,"","")) -> That's outside the interval | I30: x = | J30: =LOOKUP(J25,Sheet2!C3:C405,Sheet2!S3:S405) -> 0.9331487727 | Z30: 0
A31: =IF(n>=3,4,"") -> 4 | B31: -1 | C31: =IF(AND(A31<=n+1,Z31=0),"That's outside the interval",IF(A31>n+1,"","")) ->  | I31: y = | J31: =LOOKUP(J25,Sheet2!C3:C405,Sheet2!Z3:Z405) -> -0.3118776472 | Z31: 1
A32: =IF(n>=4,5,"") -> 5 | B32: 0 | C32: =IF(AND(A32<=n+1,Z32=0),"That's outside the interval",IF(A32>n+1,"","")) ->  | Z32: 1
A33: =IF(n>=5,6,"") ->  | B33: -2 | C33: =IF(AND(A33<=n+1,Z33=0),"That's outside the interval",IF(A33>n+1,"","")) ->  | Z33: 0
A34: =IF(n>=6,7,"") ->  | B34: -0.5 | C34: =IF(AND(A34<=n+1,Z34=0),"That's outside the interval",IF(A34>n+1,"","")) ->  | Z34: 1
Z35: 1
A37: Click each item below for suggestions and investigations
C38: Item 1
C39: Item 2
C40: Item 3
C41: Item 4
C42: Item 5
A45: To access/download all the DIGMath Apps for Calculus
A46: Click this link: | C46: DIGMath for Calculus
A48: Created by: Sheldon P. Gordon
A49: Farmingdale State College
A50: Development of this module was supported by the
A51: NSF's Division of Undergraduate Education
A52: under grants DUE-0310123 and DUE-0442160.

Sheet Sheet2
C1: t | D1: x = f(t) | E1: y = g(t) | G1: Tracing point | J1: =a+dtt/2 -> -0.8 | K1: =D405 -> -0.999573603 | M1: linear | N1: quad | O1: cubic | P1: quartic | Q1: quintic | R1: 6th | S1: x-interpol | T1: linear | U1: quad | V1: cubic | W1: quartic | X1: quintic | Y1: 6th | Z1: y-interpol
J2: =J1+dtt -> -0.4 | K2: -0.7173560909
C3: =a -> -1 | D3: =SIN(2*t) -> -0.9092974268 | E3: =COS(3*t) -> -0.9899924966 | G3: 0 | H3: 0 | J3: 0 | K3: 0 | M3: =$K$1*(Q-$J$2)/($J$1-$J$2)+$K$2*(Q-$J$1)/($J$2-$J$1) -> -1.140682359 | N3: =$K$1*(Q-$J$2)*(Q-$J$3)/($J$1-$J$2)/($J$1-$J$3)+$K$2*(Q-$J$1)*(Q-$J$3)/($J$2-$J$1)/($J$2-$J$3)+$K$3*(Q-$J$1)*(Q-$J$2)/($J$3-$J$1)/($J$3-$J$2) -> -0.9775053921 | O3: =$K$1*(Q-$J$2)*(Q-$J$3)*(Q-$J$4)/($J$1-$J$2)/($J$1-$J$3)/($J$1-$J$4)+$K$2*(Q-$J$1)*(Q-$J$3)*(Q-$J$4)/($J$2-$J$1)/($J$2-$J$3) /($J$2-$J$4)+$K$3*(Q-$J$1)*(Q-$J$2)*(Q-$J$4)/($J$3-$J$1)/($J$3-$J$2) /($J$3-$J$4)+$K$4*(Q-$J$1)*(Q-$J$2)*(Q-$J$3)/($J$4-$J$1)/($J$4-$J$2) /($J$4-$J$3) -> -0.8415245862 | P3: =$K$1*(Q-$J$2)*(Q-$J$3)*(Q-$J$4)*(Q-$J$5)/($J$1-$J$2)/($J$1-$J$3)/($J$1-$J$4)/($J$1-$J$5) +$K$2*(Q-$J$1)*(Q-$J$3)*(Q-$J$4)*(Q-$J$5)/($J$2-$J$1)/($J$2-$J$3)/($J$2-$J$4)/($J$2-$J$5) +$K$3*(Q-$J$1)*(Q-$J$2)*(Q-$J$4)*(Q-$J$5)/($J$3-$J$1)/($J$3-$J$2)/($J$3-$J$4)/($J$3-$J$5) +$K$4*(Q-$J$1)*(Q-$J$2)*(Q-$J$3)*(Q-$J$5)/($J$4-$J$1)/($J$4-$J$2)/($J$4-$J$3)/($J$4-$J$5)+$K$5*(Q-$J$1)*(Q-$J$2)*(Q-$J$3)*(Q-$J$4)/($J$5-$J$1)/($J$5-$J$2)/($J$5-$J$3)/($J$5-$J$4) -> -0.8415245862 | Q3: =$K$1*(Q-$J$2)*(Q-$J$3)*(Q-$J$4)*(Q-$J$5)*(Q-$J$6)/($J$1-$J$2)/($J$1-$J$3)/($J$1-$J$4)/($J$1-$J$5)/($J$1-$J$6) +$K$2*(Q-$J$1)*(Q-$J$3)*(Q-$J$4)*(Q-$J$5)*(Q-$J$6)/($J$2-$J$1)/($J$2-$J$3)/($J$2-$J$4)/($J$2-$J$5)/($J$2-$J$6) +$K$3*(Q-$J$1)*(Q-$J$2)*(Q-$J$4)*(Q-$J$5)*(Q-$J$6)/($J$3-$J$1)/($J$3-$J$2)/($J$3-$J$4)/($J$3-$J$5)/($J$3-$J$6) +$K$4*(Q-$J$1)*(Q-$J$2) *(Q-$J$3)*(Q-$J$5)*(Q-$J$6)/($J$4-$J$1)/($J$4-$J$2)/($J$4-$J$3)/($J$4-$J$5)/($J$4-$J$6) +$K$5*(Q-$J$1)*(Q-$J$2) *(Q-$J$3)*(Q-$J$4)*(Q-$J$6)/($J$5-$J$1)/($J$5-$J$2)/($J$5-$J$3)/($J$5-$J$4)/($J$5-$J$6) +$K$6*(Q-$J$1)*(Q-$J$2) *(Q-$J$3)*(Q-$J$4)*(Q-$J$5)/($J$6-$J$1)/($J$6-$J$2)/($J$6-$J$3)/($J$6-$J$4)/($J$6-$J$5) -> -0.9064808403 | R3: =$K$1*(Q-$J$2)*(Q-$J$3)*(Q-$J$4)*(Q-$J$5)*(Q-$J$6)*(Q-$J$7)/($J$1-$J$2)/($J$1-$J$3)/($J$1-$J$4)/($J$1-$J$5)/($J$1-$J$6) /($J$1-$J$7)+$K$2*(Q-$J$1)*(Q-$J$3)*(Q-$J$4)*(Q-$J$5)*(Q-$J$6)*(Q-$J$7)/($J$2-$J$1)/($J$2-$J$3)/($J$2-$J$4)/($J$2-$J$5)/($J$2-$J$6) /($J$2-$J$7)+$K$3*(Q-$J$1)*(Q-$J$2)*(Q-$J$4)*(Q-$J$5)*(Q-$J$6)*(Q-$J$7)/($J$3-$J$1)/($J$3-$J$2)/($J$3-$J$4)/($J$3-$J$5)/($J$3-$J$6) /($J$3-$J$7)+$K$4*(Q-$J$1)*(Q-$J$2)*(Q-$J$3)*(Q-$J$5)*(Q-$J$6)*(Q-$J$7)/($J$4-$J$1)/($J$4-$J$2)/($J$4-$J$3)/($J$4-$J$5)/($J$4-$J$6) /($J$4-$J$7)+$K$5*(Q-$J$1)*(Q-$J$2)*(Q-$J$3)*(Q-$J$4)*(Q-$J$6)*(Q-$J$7)/($J$5-$J$1)/($J$5-$J$2)/($J$5-$J$3)/($J$5-$J$4)/($J$5-$J$6) /($J$5-$J$7)+$K$6*(Q-$J$1)*(Q-$J$2)*(Q-$J$3)*(Q-$J$4)*(Q-$J$5)*(Q-$J$7)/($J$6-$J$1)/($J$6-$J$2)/($J$6-$J$3)/($J$6-$J$4)/($J$6-$J$5) /($J$6-$J$7)+$K$7*(Q-$J$1)*(Q-$J$2)*(Q-$J$3)*(Q-$J$4)*(Q-$J$5)*(Q-$J$6)/($J$7-$J$1)/($J$7-$J$2)/($J$7-$J$3)/($J$7-$J$4)/($J$7-$J$5) /($J$7-$J$6) -> -0.9425989664 | S3: =IF(n=1,M3,IF(n=2,N3,IF(n=3,O3,IF(n=4,P3,IF(n=5,Q3,R3))))) -> -0.8415245862 | T3: =$K$11*(Q-$J$12)/($J$11-$J$12)+$K$12*(Q-$J$11)/($J$12-$J$11) -> -1.287269451 | U3: =$K$11*(Q-$J$12)*(Q-$J$13)/($J$11-$J$12)/($J$11-$J$13)+$K$12*(Q-$J$11)*(Q-$J$13)/($J$12-$J$11)/($J$12-$J$13)+$K$13*(Q-$J$11)*(Q-$J$12)/($J$13-$J$11)/($J$13-$J$12) -> -1.46056041 | V3: =$K$11*(Q-$J$12)*(Q-$J$13)*(Q-$J$14)/($J$11-$J$12)/($J$11-$J$13)/($J$11-$J$14)+$K$12*(Q-$J$11)*(Q-$J$13)*(Q-$J$14)/($J$12-$J$11)/($J$12-$J$13) /($J$12-$J$14)+$K$13*(Q-$J$11)*(Q-$J$12)*(Q-$J$14)/($J$13-$J$11)/($J$13-$J$12) /($J$13-$J$14)+$K$14*(Q-$J$11)*(Q-$J$12)*(Q-$J$13)/($J$14-$J$11)/($J$14-$J$12) /($J$14-$J$13) -> -1.206443139 | W3: =-$K$11*(Q-$J$12)*(Q-$J$13)*(Q-$J$14)*(Q-$J$15)/($J$11-$J$12)/($J$11-$J$13)/($J$11-$J$14)/($J$11-$J$15) +$K$12*(Q-$J$11)*(Q-$J$13)*(Q-$J$14)*(Q-$J$15)/($J$22-$J$11)/($J$12-$J$13)/($J$12-$J$14)/($J$12-$J$15) +$K$13*(Q-$J$11)*(Q-$J$12)*(Q-$J$14)*(Q-$J$15)/($J$13-$J$11)/($J$13-$J$12)/($J$13-$J$14)/($J$13-$J$15) +$K$14*(Q-$J$11)*(Q-$J$12)*(Q-$J$13)*(Q-$J$15)/($J$14-$J$11)/($J$14-$J$12)/($J$14-$J$13)/($J$14-$J$15)+$K$15*(Q-$J$11)*(Q-$J$12)*(Q-$J$13)*(Q-$J$14)/($J$15-$J$11)/($J$15-$J$12)/($J$15-$J$31)/($J$15-$J$14) -> 3.46211497 | X3: =$K$11*(Q-$J$12)*(Q-$J$13)*(Q-$J$14)*(Q-$J$15)*(Q-$J$16)/($J$11-$J$12)/($J$11-$J$13)/($J$11-$J$14)/($J$11-$J$15)/($J$11-$J$16)+$K$12*(Q-$J$11)*(Q-$J$13)*(Q-$J$14)*(Q-$J$15)*(Q-$J$16)/($J$12-$J$11)/($J$12-$J$13)/($J$12-$J$14)/($J$12-$J$15)/($J$12-$J$16)+$K$13*(Q-$J$11)*(Q-$J$12)*(Q-$J$14)*(Q-$J$15)*(Q-$J$16)/($J$13-$J$11)/($J$13-$J$12)/($J$13-$J$14)/($J$13-$J$15)/($J$13-$J$16)+$K$14*(Q-$J$11)*(Q-$J$12)*(Q-$J$13)*(Q-$J$15)*(Q-$J$16)/($J$14-$J$11)/($J$14-$J$12)/($J$14-$J$13)/($J$14-$J$15)/($J$14-$J$16)+$K$15*(Q-$J$11)*(Q-$J$12)*(Q-$J$13)*(Q-$J$14)*(Q-$J$16)/($J$15-$J$11)/($J$15-$J$12)/($J$15-$J$13)/($J$15-$J$14)/($J$15-$J$16)+$K$16*(Q-$J$11)*(Q-$J$12)*(Q-$J$13)*(Q-$J$14)*(Q-J$15)/($J$16-$J$11)/($J$16-$J$12)/($J$16-$J$13)/($J$16-$J$14)/($J$16-$J$15) -> -0.5065313612 | Y3: =$K$11*(Q-$J$12)*(Q-$J$13)*(Q-$J$14)*(Q-$J$15)*(Q-$J$16)*(Q-$J$17)/($J$11-$J$12)/($J$11-$J$13)/($J$11-$J$14)/($J$11-$J$15)/($J$11-$J$16) /($J$11-$J$17)+$K$12*(Q-$J$11)*(Q-$J$13)*(Q-$J$14)*(Q-$J$15)*(Q-$J$16)*(Q-$J$17)/($J$12-$J$11)/($J$12-$J$13)/($J$12-$J$14)/($J$12-$J$15)/($J$12-$J$16) /($J$12-$J$17)+$K$13*(Q-$J$11)*(Q-$J$12)*(Q-$J$14)*(Q-$J$15)*(Q-$J$16)*(Q-$J$17)/($J$13-$J$11)/($J$13-$J$12)/($J$13-$J$14)/($J$13-$J$15)/($J$13-$J$16) /($J$13-$J$17)+$K$14*(Q-$J$11)*(Q-$J$12)*(Q-$J$13)*(Q-$J$15)*(Q-$J$16)*(Q-$J$17)/($J$14-$J$11)/($J$14-$J$12)/($J$14-$J$13)/($J$14-$J$15)/($J$14-$J$16) /($J$14-$J$17)+$K$15*(Q-$J$11)*(Q-$J$12)*(Q-$J$13)*(Q-$J$14)*(Q-$J$16)*(Q-$J$17)/($J$15-$J$11)/($J$15-$J$12)/($J$15-$J$13)/($J$15-$J$14)/($J$15-$J$16) /($J$15-$J$17)+$K$16*(Q-$J$11)*(Q-$J$12)*(Q-$J$13)*(Q-$J$14)*(Q-$J$15)*(Q-$J$17)/($J$16-$J$11)/($J$16-$J$12)/($J$16-$J$13)/($J$16-$J$14)/($J$16-$J$15) /($J$16-$J$17)+$K$17*(Q-$J$11)*(Q-$J$12)*(Q-$J$13)*(Q-$J$14)*(Q-$J$15)*(Q-$J$16)/($J$17-$J$11)/($J$17-$J$12)/($J$17-$J$13)/($J$17-$J$14)/($J$17-$J$15) /($J$17-$J$16) -> -0.6760708298 | Z3: =IF(n=1,T3,IF(n=2,U3,IF(n=3,V3,IF(n=4,W3,IF(n=5,X3,Y3))))) -> 3.46211497
C4: =C3+B$12 -> -0.9950124688 | D4: -0.9134032106 | E4: -0.9877702368 | G4: =Sheet1!J26 -> 0.9253830272 | H4: =Sheet1!J27 -> -0.2008945525 | J4: 0.4 | K4: 0.7173560909 | M4: -1.137163438 | N4: -0.9793783127 | O4: -0.8485465072 | P4: -0.8485465072 | Q4: -0.9106479534 | R4: -0.9451004155 | S4: -0.84855 | T4: -1.273556839 | U4: -1.44112176 | V4: -1.196626802 | W4: 3.361438058 | X4: -0.5262946071 | Y4: -0.6880154033 | Z4: =IF(n=1,T4,IF(n=2,U4,IF(n=3,V4,IF(n=4,W4,IF(n=5,X4,Y4))))) -> 3.361438058
C5: =C4+B$12 -> -0.9900249377 | D5: -0.9174181098 | E5: -0.9853268399 | J5: 0.8 | K5: 0.999573603 | M5: -1.133644516 | N5: -0.9811835816 | O5: -0.8554001424 | P5: -0.8554001424 | Q5: -0.9147265373 | R5: -0.9475646793 | S5: -0.85540 | T5: -1.259844227 | U5: -1.421754955 | V5: -1.186694249 | W5: 3.26268069 | X5: -0.5451815374 | Y5: -0.699324671 | Z5: 3.26268069
C6: -0.9850374065 | D6: -0.921341725 | E6: -0.9826628529 | J6: 1.2 | K6: 0.6754631806 | M6: -1.130125594 | N6: -0.9829211987 | O6: -0.8620863354 | P6: -0.8620863354 | Q6: -0.9187159883 | R6: -0.9499900532 | S6: -0.86209 | T6: -1.246131615 | U6: -1.402459995 | V6: -1.176647054 | W6: 3.16582268 | X6: -0.5632056612 | Y6: -0.7100069746 | Z6: 3.16582268
C7: -0.9800498753 | D7: -0.9251736656 | E7: -0.9797788722 | J7: 1.6 | K7: -0.05837414343 | M7: -1.126606673 | N7: -0.9845911642 | O7: -0.8686059296 | P7: -0.8686059296 | Q7: -0.9226157184 | R7: -0.9523748645 | S7: -0.86861 | T7: -1.232419003 | U7: -1.38323688 | V7: -1.166486795 | W7: 3.070843937 | X7: -0.5803803862 | Y7: -0.7200706292 | Z7: 3.070843937
C8: -0.9750623441 | D8: -0.9289135506 | E8: -0.9766755435 | G8: Vertical line | J8: 2 | K8: 0 | M8: -1.123087751 | N8: -0.9861934779 | O8: -0.8749597688 | P8: -0.8749597688 | Q8: -0.9264251554 | R8: -0.9547174718 | S8: -0.87496 | T8: -1.218706391 | U8: -1.36408561 | V8: -1.156215047 | W8: 2.977724464 | X8: -0.5967190189 | Y8: -0.7295239236 | Z8: 2.977724464
C9: -0.970074813 | D9: -0.9325610076 | E9: -0.9733535615 | M9: -1.11956883 | N9: -0.9877281399 | O9: -0.8811486963 | P9: -0.8811486963 | Q9: -0.9301437428 | R9: -0.9570162654 | S9: -0.88115 | T9: -1.204993779 | U9: -1.345006184 | V9: -1.145833388 | W9: 2.886444355 | X9: -0.6122347655 | Y9: -0.7383751194 | Z9: 2.886444355
C10: -0.9650872818 | D10: -0.9361156739 | E10: -0.96981367 | G10: =t0 -> 0.5960099751 | H10: =MIN(0,LOOKUP(t0,C3:C404,D3:D404),LOOKUP(t0,C3:C404,E3:E404)) -> -0.2008945525 | M10: -1.116049908 | N10: -0.9891951502 | O10: -0.8871735557 | P10: -0.8871735557 | Q10: -0.9337709394 | R10: -0.9592696664 | S10: -0.88717 | T10: -1.191281168 | U10: -1.325998604 | V10: -1.135343393 | W10: 2.796983794 | X10: -0.6269407312 | Y10: -0.746632451 | Z10: 2.796983794
C11: -0.9600997506 | D11: -0.9395771957 | E11: -0.9660566615 | G11: =t0 -> 0.5960099751 | H11: =MAX(0,LOOKUP(t0,C3:C404,D3:D404),LOOKUP(t0,C3:C404,E3:E404)) -> 0.9253830272 | J11: =a+dtt/2 -> -0.8 | K11: =E405 -> -0.7373937155 | M11: -1.112530986 | N11: -0.9905945087 | O11: -0.8930351906 | P11: -0.8930351906 | Q11: -0.9373062199 | R11: -0.9614761271 | S11: -0.89304 | T11: -1.177568556 | U11: -1.307062868 | V11: -1.12474664 | W11: 2.709323062 | X11: -0.6408499216 | Y11: -0.754304125 | Z11: 2.709323062
A12: delta t = | B12: =(Sheet1!D19-Sheet1!D18)/401 -> 0.004987531172 | C12: -0.9551122195 | D12: -0.9429452286 | E12: -0.9620833769 | J12: =J11+dtt -> -0.4 | K12: 0.3623577545 | M12: -1.109012065 | N12: -0.9919262156 | O12: -0.8987344445 | P12: -0.8987344445 | Q12: -0.9407490739 | R12: -0.9636341301 | S12: -0.89873 | T12: -1.163855944 | U12: -1.288198978 | V12: -1.114044704 | W12: 2.62344253 | X12: -0.6539752423 | Y12: -0.7613983201 | Z12: 2.62344253
C13: -0.9501246883 | D13: -0.9462194374 | E13: -0.957894706 | J13: 0 | K13: 1 | M13: -1.105493143 | N13: -0.9931902707 | O13: -0.9042721609 | P13: -0.9042721609 | Q13: -0.9440990067 | R13: -0.9657421889 | S13: -0.90427 | T13: -1.150143332 | U13: -1.269406932 | V13: -1.103239161 | W13: 2.539322662 | X13: -0.6663294993 | Y13: -0.7679231866 | Z13: 2.539322662
A14: dtt = | B14: =(b-a)/(n+1) -> 0.4 | C14: -0.9451371571 | D14: -0.9493994964 | E14: -0.9534915863 | J14: 0.4 | K14: 0.3623577545 | M14: -1.101974222 | N14: -0.9943866741 | O14: -0.9096491834 | P14: -0.9096491834 | Q14: -0.9473555386 | R14: -0.9677988469 | S14: -0.90965 | T14: -1.13643072 | U14: -1.250686731 | V14: -1.092331589 | W14: 2.456944013 | X14: -0.6779253997 | Y14: -0.773886846 | Z14: 2.456944013
C15: -0.9401496259 | D15: -0.9524850892 | E15: -0.9488750036 | J15: 0.8 | K15: -0.7373937155 | M15: -1.0984553 | N15: -0.9955154257 | O15: -0.9148663555 | P15: -0.9148663555 | Q15: -0.9505182053 | R15: -0.9698026777 | S15: -0.91487 | T15: -1.122718108 | U15: -1.232038375 | V15: -1.081323563 | W15: 2.376287233 | X15: -0.6887755516 | Y15: -0.7792973909 | Z15: 2.376287233
A16: T00 = | B16: =a+dtt/2 -> -0.8 | C16: -0.9351620948 | D16: -0.9554759087 | E16: -0.9440459916 | J16: 1.2 | K16: -0.8967584163 | M16: -1.094936378 | N16: -0.9965765257 | O16: -0.9199245208 | P16: -0.9199245208 | Q16: -0.9535865572 | R16: -0.9717522846 | S16: -0.91992 | T16: -1.109005497 | U16: -1.213461864 | V16: -1.07021666 | W16: 2.297333064 | X16: -0.6988924645 | Y16: -0.7841628842 | Z16: 2.297333064
A17: T01 = | B17: =B16+dtt -> -0.4 | C17: -0.9301745636 | D17: -0.9583716574 | E17: -0.9390056312 | J17: 1.6 | K17: 0.08749898344 | M17: -1.091417457 | N17: -0.9975699739 | O17: -0.9248245227 | P17: -0.9248245227 | Q17: -0.95656016 | R17: -0.9736463006 | S17: -0.92482 | T17: -1.095292885 | U17: -1.194957198 | V17: -1.059012456 | W17: 2.220062338 | X17: -0.7082885498 | Y17: -0.7884913595 | Z17: 2.220062338
A18: T02 = | B18: =B17+dtt -> 0 | C18: -0.9251870324 | D18: -0.9611720471 | E18: -0.9337550509 | J18: 2 | K18: 0 | M18: -1.087898535 | N18: -0.9984957704 | O18: -0.9295672049 | P18: -0.9295672049 | Q18: -0.9594385943 | R18: -0.975483388 | S18: -0.92957 | T18: -1.081580273 | U18: -1.176524376 | V18: -1.047712528 | W18: 2.144455981 | X18: -0.7169761209 | Y18: -0.79229082 | Z18: 2.144455981
A19: T03 = | B19: =B18+dtt -> 0.4 | C19: -0.9201995012 | D19: -0.9638767992 | E19: -0.9282954262 | M19: -1.084379614 | N19: -0.9993539152 | O19: -0.9341534108 | P19: -0.9341534108 | Q19: -0.9622214554 | R19: -0.9772622383 | S19: -0.93415 | T19: -1.067867661 | U19: -1.1581634 | V19: -1.036318452 | W19: 2.070495014 | X19: -0.7249673937 | Y19: -0.7955692387 | Z19: 2.070495014
A20: T04 = | B20: =B19+dtt -> 0.8 | C20: -0.9152119701 | D20: -0.9664856445 | E20: -0.9226279793 | M20: -1.080860692 | N20: -1.000144408 | O20: -0.9385839841 | P20: -0.9385839841 | Q20: -0.9649083534 | R20: -0.9789815719 | S20: -0.93858 | T20: -1.054155049 | U20: -1.139874268 | V20: -1.024831804 | W20: 1.998160546 | X20: -0.7322744867 | Y20: -0.7983345577 | Z20: 1.998160546
A21: T05 = | B21: =B20+dtt -> 1.2 | C21: -0.9102244389 | D21: -0.9689983235 | E21: -0.916753979 | M21: -1.07734177 | N21: -1.00086725 | O21: -0.9428597681 | P21: -0.9428597681 | Q21: -0.9674989132 | R21: -0.9806401378 | S21: -0.94286 | T21: -1.040442437 | U21: -1.121656982 | V21: -1.013254161 | W21: 1.927433782 | X21: -0.7389094214 | Y21: -0.8005946883 | Z21: 1.927433782
A22: T06 = | B22: =B21+dtt -> 1.6 | C22: -0.9052369077 | D22: -0.9714145861 | E22: -0.9106747405 | M22: -1.073822849 | N22: -1.001522439 | O22: -0.9469816066 | P22: -0.9469816066 | Q22: -0.9699927741 | R22: -0.9822367139 | S22: -0.94698 | T22: -1.026729825 | U22: -1.10351154 | V22: -1.0015871 | W22: 1.858296018 | X22: -0.7448841229 | Y22: -0.8023575102 | Z22: 1.858296018
C23: -0.9002493766 | D23: -0.973734192 | E23: -0.9043916246 | M23: -1.070303927 | N23: -1.002109977 | O23: -0.9509503429 | P23: -0.9509503429 | Q23: -0.97238959 | R23: -0.9837701059 | S23: -0.95095 | T23: -1.013017214 | U23: -1.085437943 | V23: -0.9898321956 | W23: 1.790728641 | X23: -0.7502104196 | Y23: -0.8036308716 | Z23: 1.790728641
C24: -0.8952618454 | D24: -0.9759569103 | E24: -0.8979060379 | M24: -1.066785006 | N24: -1.002629863 | O24: -0.9547668207 | P24: -0.9547668207 | Q24: -0.9746890293 | R24: -0.985239148 | S24: -0.95477 | T24: -0.9993046018 | U24: -1.067436191 | V24: -0.9779910254 | W24: 1.724713134 | X24: -0.754900044 | Y24: -0.8044225887 | Z24: 1.724713134
C25: -0.8902743142 | D25: -0.9780825199 | E25: -0.8912194326 | M25: -1.063266084 | N25: -1.003082098 | O25: -0.9584318835 | P25: -0.9584318835 | Q25: -0.9768907748 | R25: -0.986642702 | S25: -0.95843 | T25: -0.9855919899 | U25: -1.049506284 | V25: -0.9660651655 | W25: 1.660231069 | X25: -0.7589646329 | Y25: -0.8047404452 | Z25: 1.660231069
C26: -0.885286783 | D26: -0.9801108092 | E26: -0.8843333055 | M26: -1.059747162 | N26: -1.00346668 | O26: -0.9619463748 | P26: -0.9619463748 | Q26: -0.9789945233 | R26: -0.9879796575 | S26: -0.96195 | T26: -0.9718793781 | U26: -1.031648222 | V26: -0.9540561922 | W26: 1.597264114 | X26: -0.7624157278 | Y26: -0.8045921925 | Z26: 1.597264114
C27: -0.8802992519 | D27: -0.9820415765 | E27: -0.8772491982 | M27: -1.056228241 | N27: -1.003783611 | O27: -0.9653111382 | P27: -0.9653111382 | Q27: -0.9809999861 | R27: -0.9892489314 | S27: -0.96531 | T27: -0.9581667663 | U27: -1.013862005 | V27: -0.9419656821 | W27: 1.535794026 | X27: -0.7652647748 | Y27: -0.8039855489 | Z27: 1.535794026
C28: -0.8753117207 | D28: -0.9838746297 | E28: -0.8699686967 | M28: -1.052709319 | N28: -1.004032891 | O28: -0.9685270172 | P28: -0.9685270172 | Q28: -0.9829068885 | R28: -0.9904494681 | S28: -0.96853 | T28: -0.9444541544 | U28: -0.9961476325 | V28: -0.9297952114 | W28: 1.475802656 | X28: -0.7675231255 | Y28: -0.8029281994 | Z28: 1.475802656
C29: -0.8703241895 | D29: -0.9856097863 | E29: -0.862493431 | M29: -1.049190398 | N29: -1.004214518 | O29: -0.9715948553 | P29: -0.9715948553 | Q29: -0.9847149699 | R29: -0.9915802387 | S29: -0.97159 | T29: -0.9307415426 | U29: -0.978505105 | V29: -0.9175463565 | W29: 1.417271948 | X29: -0.7692020369 | Y29: -0.8014277956 | Z29: 1.417271948
C30: -0.8653366584 | D30: -0.9872468737 | E30: -0.8548250745 | M30: -1.045671476 | N30: -1.004328494 | O30: -0.9745154961 | P30: -0.9745154961 | Q30: -0.9864239836 | R30: -0.9926402414 | S30: -0.97452 | T30: -0.9170289307 | U30: -0.9609344224 | V30: -0.9052206938 | W30: 1.360183937 | X30: -0.7703126717 | Y30: -0.7994919552 | Z30: 1.360183937
C31: -0.8603491272 | D31: -0.9887857289 | E31: -0.8469653441 | M31: -1.042152554 | N31: -1.004374818 | O31: -0.9772897831 | P31: -0.9772897831 | Q31: -0.9880336967 | R31: -0.9936285008 | S31: -0.97729 | T31: -0.9033163189 | U31: -0.9434355847 | V31: -0.8928197998 | W31: 1.304520753 | X31: -0.7708660991 | Y31: -0.797128262 | Z31: 1.304520753
C32: -0.855361596 | D32: -0.990226199 | E32: -0.8389159992 | M32: -1.038633633 | N32: -1.004353491 | O32: -0.9799185599 | P32: -0.9799185599 | Q32: -0.9895438903 | R32: -0.9945440681 | S32: -0.97992 | T32: -0.889603707 | U32: -0.9260085919 | V32: -0.8803452507 | W32: 1.250264616 | X32: -0.7708732944 | Y32: -0.7943442651 | Z32: 1.250264616
C33: -0.8503740648 | D33: -0.9915681406 | E33: -0.8306788421 | M33: -1.035114711 | N33: -1.004264511 | O33: -0.9824026699 | P33: -0.9824026699 | Q33: -0.9909543591 | R33: -0.9953860205 | S33: -0.98240 | T33: -0.8758910952 | U33: -0.908653444 | V33: -0.8677986229 | W33: 1.197397839 | X33: -0.7703451399 | Y33: -0.7911474791 | Z33: 1.197397839
C34: -0.8453865337 | D34: -0.99281142 | E34: -0.8222557166 | M34: -1.03159579 | N34: -1.00410788 | O34: -0.9847429568 | P34: -0.9847429568 | Q34: -0.9922649115 | R34: -0.9961534612 | S34: -0.98474 | T34: -0.8621784833 | U34: -0.891370141 | V34: -0.8551814929 | W34: 1.145902828 | X34: -0.7692924249 | Y34: -0.7875453835 | Z34: 1.145902828
C35: -0.8403990025 | D35: -0.9939559137 | E35: -0.8136485087 | M35: -1.028076868 | N35: -1.003883598 | O35: -0.986940264 | P35: -0.986940264 | Q35: -0.9934753693 | R35: -0.9968455194 | S35: -0.98694 | T35: -0.8484658715 | U35: -0.8741586828 | V35: -0.842495437 | W35: 1.095762082 | X35: -0.7677258461 | Y35: -0.7835454226 | Z35: 1.095762082
C36: -0.8354114713 | D36: -0.9950015078 | E36: -0.8048591451 | M36: -1.024557946 | N36: -1.003591663 | O36: -0.9889954352 | P36: -0.9889954352 | Q36: -0.994585568 | R36: -0.9974613496 | S36: -0.98900 | T36: -0.8347532596 | U36: -0.8570190696 | V36: -0.8297420316 | W36: 1.046958191 | X36: -0.7656560079 | Y36: -0.7791550051 | Z36: 1.046958191
C37: -0.8304239401 | D37: -0.9959480981 | E37: -0.7958895937 | M37: -1.021039025 | N37: -1.003232077 | O37: -0.9909093137 | P37: -0.9909093137 | Q37: -0.9955953564 | R37: -0.9980001318 | S37: -0.99091 | T37: -0.8210406478 | U37: -0.8399513013 | V37: -0.816922853 | W37: 0.9994738388 | X37: -0.7630934227 | Y37: -0.774381504 | Z37: 0.9994738388
C38: -0.825436409 | D38: -0.9967955906 | E38: -0.7867418625 | M38: -1.017520103 | N38: -1.002804839 | O38: -0.9926827433 | P38: -0.9926827433 | Q38: -0.9965045967 | R38: -0.9984610712 | S38: -0.99268 | T38: -0.807328036 | U38: -0.8229553778 | V38: -0.8040394778 | W38: 0.9532918009 | X38: -0.7600485115 | Y38: -0.7692322561 | Z38: 0.9532918009
C39: -0.8204488778 | D39: -0.9975439009 | E39: -0.7774179995 | M39: -1.014001182 | N39: -1.002309949 | O39: -0.9943165674 | P39: -0.9943165674 | Q39: -0.9973131642 | R39: -0.9988433978 | S39: -0.99432 | T39: -0.7936154241 | U39: -0.8060312993 | V39: -0.7910934821 | W39: 0.9083949455 | X39: -0.7565316035 | Y39: -0.7637145618 | Z39: 0.9083949455
C40: -0.8154613466 | D40: -0.9981929545 | E40: -0.7679200919 | M40: -1.01048226 | N40: -1.001747408 | O40: -0.9958116295 | P40: -0.9958116295 | Q40: -0.9980209475 | R40: -0.9991463665 | S40: -0.99581 | T40: -0.7799028123 | U40: -0.7891790656 | V40: -0.7780864425 | W40: 0.8647662334 | X40: -0.7525529372 | Y40: -0.7578356849 | Z40: 0.8647662334
C41: -0.8104738155 | D41: -0.9987426869 | E41: -0.7582502662 | M41: -1.006963338 | N41: -1.001117215 | O41: -0.9971687732 | P41: -0.9971687732 | Q41: -0.9986278482 | R41: -0.9993692568 | S41: -0.99717 | T41: -0.7661902004 | U41: -0.7723986768 | V41: -0.7650199352 | W41: 0.8223887176 | X41: -0.7481226603 | Y41: -0.7516028523 | Z41: 0.8223887176
C42: -0.8054862843 | D42: -0.9991930434 | E42: -0.7484106873 | M42: -1.003444417 | N42: -1.00041937 | O42: -0.998388842 | P42: -0.998388842 | Q42: -0.999133781 | R42: -0.9995113723 | S42: -0.99839 | T42: -0.7524775886 | U42: -0.755690133 | V42: -0.7518955368 | W42: 0.781245544 | X42: -0.7432508299 | Y42: -0.7450232536 | Z42: 0.781245544
C43: -0.8004987531 | D43: -0.999543979 | E43: -0.7384035578 | M43: -0.9999254952 | N43: -0.9996538735 | O43: -0.9994726795 | P43: -0.9994726795 | Q43: -0.9995386734 | R43: -0.9995720409 | S43: -0.99947 | T43: -0.7387649767 | U43: -0.739053434 | V43: -0.7387148235 | W43: 0.7413199505 | X43: -0.7379474134 | Y43: -0.7381040413 | Z43: 0.7413199505
C44: -0.7955112219 | D44: -0.9997954591 | E44: -0.7282311183 | M44: -0.9964065736 | N44: -0.9988207253 | O44: -1.000421129 | P44: -1.000421129 | Q44: -0.9998424659 | R44: -0.9995506146 | S44: -1.00042 | T44: -0.7250523649 | U44: -0.7224885799 | V44: -0.7254793717 | W44: 0.7025952679 | X44: -0.732222288 | Y44: -0.7308523298 | Z44: 0.7025952679
C45: -0.7905236908 | D45: -0.9999474584 | E45: -0.717895646 | M45: -0.992887652 | N45: -0.9979199253 | O45: -1.001235035 | P45: -1.001235035 | Q45: -1.000045112 | R45: -0.9994464689 | S45: -1.00124 | T45: -0.711339753 | U45: -0.7059955707 | V45: -0.7121907579 | W45: 0.6650549191 | X45: -0.7260852416 | Y45: -0.7232751959 | Z45: 0.6650549191
C46: -0.7855361596 | D46: -0.9999999619 | E46: -0.7073994547 | M46: -0.9893687304 | N46: -0.9969514736 | O46: -1.001915239 | P46: -1.001915239 | Q46: -1.000146577 | R46: -0.9992590029 | S46: -1.00192 | T46: -0.6976271412 | U46: -0.6895744064 | V46: -0.6988505584 | W46: 0.6286824198 | X46: -0.7195459729 | Y46: -0.7153796779 | Z46: 0.6286824198
C47: -0.7805486284 | D47: -0.9999529644 | E47: -0.6967448944 | M47: -0.9858498088 | N47: -0.9959153702 | O47: -1.002462587 | P47: -1.002462587 | Q47: -1.000146839 | R47: -0.9989876391 | S47: -1.00246 | T47: -0.6839145293 | U47: -0.673225087 | V47: -0.6854603495 | W47: 0.593461378 | X47: -0.7126140919 | Y47: -0.7071727758 | Z47: 0.593461378
C48: -0.7755610973 | D48: -0.9998064705 | E48: -0.6859343504 | M48: -0.9823308872 | N48: -0.9948116151 | O48: -1.002877921 | P48: -1.002877921 | Q48: -1.00004589 | R48: -0.9986318232 | S48: -1.00288 | T48: -0.6702019175 | U48: -0.6569476124 | V48: -0.6720217077 | W48: 0.5593754941 | X48: -0.7052991199 | Y48: -0.698661451 | Z48: 0.5593754941
C49: -0.7705735661 | D49: -0.9995604948 | E49: -0.6749702427 | M49: -0.9788119656 | N49: -0.9936402082 | O49: -1.003162085 | P49: -1.003162085 | Q49: -0.9998437334 | R49: -0.9981910237 | S49: -1.00316 | T49: -0.6564893057 | U49: -0.6407419828 | V49: -0.6585362093 | W49: 0.5264085612 | X49: -0.69761049 | Y49: -0.6898526257 | Z49: 0.5264085612
C50: -0.7655860349 | D50: -0.9992150618 | E50: -0.6638550261 | M50: -0.975293044 | N50: -0.9924011496 | O50: -1.003315922 | P50: -1.003315922 | Q50: -0.9995403845 | R50: -0.997664732 | S50: -1.00332 | T50: -0.6427766938 | U50: -0.6246081981 | V50: -0.6450054308 | W50: 0.4945444647 | X50: -0.6895575473 | Y50: -0.6807531832 | Z50: 0.4945444647
C51: -0.7605985037 | D51: -0.9987702059 | E51: -0.6525911889 | M51: -0.9717741224 | N51: -0.9910944393 | O51: -1.003340276 | P51: -1.003340276 | Q51: -0.9991358717 | R51: -0.9970524619 | S51: -1.00334 | T51: -0.629064082 | U51: -0.6085462582 | V51: -0.6314309485 | W51: 0.4637671825 | X51: -0.6811495496 | Y51: -0.6713699672 | Z51: 0.4637671825
C52: -0.7556109726 | D52: -0.9982259713 | E52: -0.6411812528 | M52: -0.9682552008 | N52: -0.9897200773 | O52: -1.003235991 | P52: -1.003235991 | Q52: -0.9986302353 | R52: -0.9963537497 | S52: -1.00324 | T52: -0.6153514701 | U52: -0.5925561633 | V52: -0.6178143387 | W52: 0.4340607852 | X52: -0.6723956671 | Y52: -0.6617097818 | Z52: 0.4340607852
C53: -0.7506234414 | D53: -0.9975824122 | E53: -0.6296277723 | M53: -0.9647362792 | N53: -0.9882780635 | O53: -1.003003909 | P53: -1.003003909 | Q53: -0.9980235277 | R53: -0.9955681538 | S53: -1.00300 | T53: -0.6016388583 | U53: -0.5766379132 | V53: -0.6041571779 | W53: 0.4054094355 | X53: -0.6633049831 | Y53: -0.6517793911 | Z53: 0.4054094355
C54: -0.7456359102 | D54: -0.9968395925 | E54: -0.6179333338 | M54: -0.9612173576 | N54: -0.9867683981 | O54: -1.002644876 | P54: -1.002644876 | Q54: -0.9973158135 | R54: -0.9946952546 | S54: -1.00264 | T54: -0.5879262464 | U54: -0.5607915081 | V54: -0.5904610425 | W54: 0.3777973889 | X54: -0.6538864943 | Y54: -0.6415855194 | Z54: 0.3777973889
C55: -0.7406483791 | D55: -0.9959975863 | E55: -0.6061005555 | M55: -0.957698436 | N55: -0.9851910809 | O55: -1.002159733 | P55: -1.002159733 | Q55: -0.9965071692 | R55: -0.9937346542 | S55: -1.00216 | T55: -0.5742136346 | U55: -0.5450169478 | V55: -0.5767275087 | W55: 0.3512089931 | X55: -0.6441491112 | Y55: -0.6311348502 | Z55: 0.3512089931
C56: -0.7356608479 | D56: -0.9950564773 | E56: -0.5941320864 | M56: -0.9541795144 | N56: -0.983546112 | O56: -1.001549325 | P56: -1.001549325 | Q56: -0.9955976831 | R56: -0.9926859763 | S56: -1.00155 | T56: -0.5605010227 | U56: -0.5293142324 | V56: -0.5629581531 | W56: 0.3256286885 | X56: -0.6341016578 | Y56: -0.6204340268 | Z56: 0.3256286885
C57: -0.7306733167 | D57: -0.9940163592 | E57: -0.582030606 | M57: -0.9506605928 | N57: -0.9818334913 | O57: -1.000814496 | P57: -1.000814496 | Q57: -0.9945874555 | R57: -0.9915488661 | S57: -1.00081 | T57: -0.5467884109 | U57: -0.5136833619 | V57: -0.549154552 | W57: 0.3010410079 | X57: -0.6237528729 | Y57: -0.6094896516 | Z57: 0.3010410079
C58: -0.7256857855 | D58: -0.9928773353 | E58: -0.5697988234 | M58: -0.9471416712 | N58: -0.980053219 | O58: -0.9999560876 | P58: -0.9999560876 | Q58: -0.9934765983 | R58: -0.9903229899 | S58: -0.99996 | T58: -0.533075799 | U58: -0.4981243364 | V58: -0.5353182817 | W58: 0.2774305766 | X58: -0.6131114095 | Y58: -0.5983082858 | Z58: 0.2774305766
C59: -0.7206982544 | D59: -0.9916395192 | E59: -0.5574394772 | M59: -0.9436227496 | N59: -0.9782052949 | O59: -0.9989749449 | P59: -0.9989749449 | Q59: -0.992265235 | R59: -0.9890080349 | S59: -0.99897 | T59: -0.5193631872 | U59: -0.4826371557 | V59: -0.5214509187 | W59: 0.2547821123 | X59: -0.6021858358 | Y59: -0.5868964497 | Z59: 0.2547821123
C60: -0.7157107232 | D60: -0.9903030339 | E60: -0.5449553341 | M60: -0.940103828 | N60: -0.9762897191 | O60: -0.997871911 | P60: -0.997871911 | Q60: -0.9909535009 | R60: -0.9876037093 | S60: -0.99787 | T60: -0.5056505754 | U60: -0.4672218198 | V60: -0.5075540393 | W60: 0.2330804253 | X60: -0.590984635 | Y60: -0.5752606219 | Z60: 0.2330804253
C61: -0.710723192 | D61: -0.9888680124 | E61: -0.5323491892 | M61: -0.9365849064 | N61: -0.9743064916 | O61: -0.9966478294 | P61: -0.9966478294 | Q61: -0.9895415426 | R61: -0.9861097418 | S61: -0.99665 | T61: -0.4919379635 | U61: -0.4518783289 | V61: -0.4936292199 | W61: 0.2123104181 | X61: -0.5795162058 | Y61: -0.5634072395 | Z61: 0.2123104181
C62: -0.7057356608 | D62: -0.9873345974 | E62: -0.5196238645 | M62: -0.9330659848 | N62: -0.9722556123 | O62: -0.9953035437 | P62: -0.9953035437 | Q62: -0.9880295181 | R62: -0.9845258816 | S62: -0.99530 | T62: -0.4782253517 | U62: -0.4366066829 | V62: -0.4796780369 | W62: 0.1924570861 | X62: -0.5677888629 | Y62: -0.5513426976 | Z62: 0.1924570861
C63: -0.7007481297 | D63: -0.9857029417 | E63: -0.5067822091 | M63: -0.9295470632 | N63: -0.9701370814 | O63: -0.9938398974 | P63: -0.9938398974 | Q63: -0.9864175969 | R63: -0.9828518981 | S63: -0.99384 | T63: -0.4645127398 | U63: -0.4214068818 | V63: -0.4657020666 | W63: 0.1735055169 | X63: -0.5558108371 | Y63: -0.5390733494 | Z63: 0.1735055169
C64: -0.6957605985 | D64: -0.9839732075 | E64: -0.4938270978 | M64: -0.9260281416 | N64: -0.9679508987 | O64: -0.9922577341 | P64: -0.9922577341 | Q64: -0.9847059597 | R64: -0.9810875806 | S64: -0.99226 | T64: -0.450800128 | U64: -0.4062789256 | V64: -0.4517028855 | W64: 0.1554408906 | X64: -0.5435902757 | Y64: -0.5266055058 | Z64: 0.1554408906
C65: -0.6907730673 | D65: -0.9821455669 | E65: -0.4807614309 | M65: -0.9225092201 | N65: -0.9656970643 | O65: -0.9905578973 | P65: -0.9905578973 | Q65: -0.9828947982 | R65: -0.9792327386 | S65: -0.99056 | T65: -0.4370875161 | U65: -0.3912228142 | V65: -0.43768207 | W65: 0.1382484798 | X65: -0.5311352425 | Y65: -0.513945435 | Z65: 0.1382484798
C66: -0.6857855362 | D66: -0.9802202019 | E66: -0.4675881335 | M66: -0.9189902985 | N66: -0.9633755782 | O66: -0.9887412305 | P66: -0.9887412305 | Q66: -0.9809843155 | R66: -0.977287201 | S66: -0.98874 | T66: -0.4233749043 | U66: -0.3762385478 | V66: -0.4236411963 | W66: 0.1219136496 | X66: -0.5184537189 | Y66: -0.5010993629 | Z66: 0.1219136496
C67: -0.680798005 | D67: =SIN(2*t) -> -0.9781973039 | E67: =COS(3*t) -> -0.4543101549 | M67: =$K$1*(Q-$J$2)/($J$1-$J$2)+$K$2*(Q-$J$1)/($J$2-$J$1) -> -0.9154713769 | N67: =$K$1*(Q-$J$2)*(Q-$J$3)/($J$1-$J$2)/($J$1-$J$3)+$K$2*(Q-$J$1)*(Q-$J$3)/($J$2-$J$1)/($J$2-$J$3)+$K$3*(Q-$J$1)*(Q-$J$2)/($J$3-$J$1)/($J$3-$J$2) -> -0.9609864403 | O67: =$K$1*(Q-$J$2)*(Q-$J$3)*(Q-$J$4)/($J$1-$J$2)/($J$1-$J$3)/($J$1-$J$4)+$K$2*(Q-$J$1)*(Q-$J$3)*(Q-$J$4)/($J$2-$J$1)/($J$2-$J$3) /($J$2-$J$4)+$K$3*(Q-$J$1)*(Q-$J$2)*(Q-$J$4)/($J$3-$J$1)/($J$3-$J$2) /($J$3-$J$4)+$K$4*(Q-$J$1)*(Q-$J$2)*(Q-$J$3)/($J$4-$J$1)/($J$4-$J$2) /($J$4-$J$3) -> -0.9868085773 | P67: =$K$1*(Q-$J$2)*(Q-$J$3)*(Q-$J$4)*(Q-$J$5)/($J$1-$J$2)/($J$1-$J$3)/($J$1-$J$4)/($J$1-$J$5) +$K$2*(Q-$J$1)*(Q-$J$3)*(Q-$J$4)*(Q-$J$5)/($J$2-$J$1)/($J$2-$J$3)/($J$2-$J$4)/($J$2-$J$5) +$K$3*(Q-$J$1)*(Q-$J$2)*(Q-$J$4)*(Q-$J$5)/($J$3-$J$1)/($J$3-$J$2)/($J$3-$J$4)/($J$3-$J$5) +$K$4*(Q-$J$1)*(Q-$J$2)*(Q-$J$3)*(Q-$J$5)/($J$4-$J$1)/($J$4-$J$2)/($J$4-$J$3)/($J$4-$J$5)+$K$5*(Q-$J$1)*(Q-$J$2)*(Q-$J$3)*(Q-$J$4)/($J$5-$J$1)/($J$5-$J$2)/($J$5-$J$3)/($J$5-$J$4) -> -0.9868085773 | Q67: =$K$1*(Q-$J$2)*(Q-$J$3)*(Q-$J$4)*(Q-$J$5)*(Q-$J$6)/($J$1-$J$2)/($J$1-$J$3)/($J$1-$J$4)/($J$1-$J$5)/($J$1-$J$6) +$K$2*(Q-$J$1)*(Q-$J$3)*(Q-$J$4)*(Q-$J$5)*(Q-$J$6)/($J$2-$J$1)/($J$2-$J$3)/($J$2-$J$4)/($J$2-$J$5)/($J$2-$J$6) +$K$3*(Q-$J$1)*(Q-$J$2)*(Q-$J$4)*(Q-$J$5)*(Q-$J$6)/($J$3-$J$1)/($J$3-$J$2)/($J$3-$J$4)/($J$3-$J$5)/($J$3-$J$6) +$K$4*(Q-$J$1)*(Q-$J$2) *(Q-$J$3)*(Q-$J$5)*(Q-$J$6)/($J$4-$J$1)/($J$4-$J$2)/($J$4-$J$3)/($J$4-$J$5)/($J$4-$J$6) +$K$5*(Q-$J$1)*(Q-$J$2) *(Q-$J$3)*(Q-$J$4)*(Q-$J$6)/($J$5-$J$1)/($J$5-$J$2)/($J$5-$J$3)/($J$5-$J$4)/($J$5-$J$6) +$K$6*(Q-$J$1)*(Q-$J$2) *(Q-$J$3)*(Q-$J$4)*(Q-$J$5)/($J$6-$J$1)/($J$6-$J$2)/($J$6-$J$3)/($J$6-$J$4)/($J$6-$J$5) -> -0.9789747254 | R67: =$K$1*(Q-$J$2)*(Q-$J$3)*(Q-$J$4)*(Q-$J$5)*(Q-$J$6)*(Q-$J$7)/($J$1-$J$2)/($J$1-$J$3)/($J$1-$J$4)/($J$1-$J$5)/($J$1-$J$6) /($J$1-$J$7)+$K$2*(Q-$J$1)*(Q-$J$3)*(Q-$J$4)*(Q-$J$5)*(Q-$J$6)*(Q-$J$7)/($J$2-$J$1)/($J$2-$J$3)/($J$2-$J$4)/($J$2-$J$5)/($J$2-$J$6) /($J$2-$J$7)+$K$3*(Q-$J$1)*(Q-$J$2)*(Q-$J$4)*(Q-$J$5)*(Q-$J$6)*(Q-$J$7)/($J$3-$J$1)/($J$3-$J$2)/($J$3-$J$4)/($J$3-$J$5)/($J$3-$J$6) /($J$3-$J$7)+$K$4*(Q-$J$1)*(Q-$J$2)*(Q-$J$3)*(Q-$J$5)*(Q-$J$6)*(Q-$J$7)/($J$4-$J$1)/($J$4-$J$2)/($J$4-$J$3)/($J$4-$J$5)/($J$4-$J$6) /($J$4-$J$7)+$K$5*(Q-$J$1)*(Q-$J$2)*(Q-$J$3)*(Q-$J$4)*(Q-$J$6)*(Q-$J$7)/($J$5-$J$1)/($J$5-$J$2)/($J$5-$J$3)/($J$5-$J$4)/($J$5-$J$6) /($J$5-$J$7)+$K$6*(Q-$J$1)*(Q-$J$2)*(Q-$J$3)*(Q-$J$4)*(Q-$J$5)*(Q-$J$7)/($J$6-$J$1)/($J$6-$J$2)/($J$6-$J$3)/($J$6-$J$4)/($J$6-$J$5) /($J$6-$J$7)+$K$7*(Q-$J$1)*(Q-$J$2)*(Q-$J$3)*(Q-$J$4)*(Q-$J$5)*(Q-$J$6)/($J$7-$J$1)/($J$7-$J$2)/($J$7-$J$3)/($J$7-$J$4)/($J$7-$J$5) /($J$7-$J$6) -> -0.9752508163 | S67: =IF(n=1,M67,IF(n=2,N67,IF(n=3,O67,IF(n=4,P67,IF(n=5,Q67,R67))))) -> -0.98681 | T67: =$K$11*(Q-$J$12)/($J$11-$J$12)+$K$12*(Q-$J$11)/($J$12-$J$11) -> -0.4096622924 | U67: =$K$11*(Q-$J$12)*(Q-$J$13)/($J$11-$J$12)/($J$11-$J$13)+$K$12*(Q-$J$11)*(Q-$J$13)/($J$12-$J$11)/($J$12-$J$13)+$K$13*(Q-$J$11)*(Q-$J$12)/($J$13-$J$11)/($J$13-$J$12) -> -0.3613261262 | V67: =$K$11*(Q-$J$12)*(Q-$J$13)*(Q-$J$14)/($J$11-$J$12)/($J$11-$J$13)/($J$11-$J$14)+$K$12*(Q-$J$11)*(Q-$J$13)*(Q-$J$14)/($J$12-$J$11)/($J$12-$J$13) /($J$12-$J$14)+$K$13*(Q-$J$11)*(Q-$J$12)*(Q-$J$14)/($J$13-$J$11)/($J$13-$J$12) /($J$13-$J$14)+$K$14*(Q-$J$11)*(Q-$J$12)*(Q-$J$13)/($J$14-$J$11)/($J$14-$J$12) /($J$14-$J$13) -> -0.409581841 | W67: =-$K$11*(Q-$J$12)*(Q-$J$13)*(Q-$J$14)*(Q-$J$15)/($J$11-$J$12)/($J$11-$J$13)/($J$11-$J$14)/($J$11-$J$15) +$K$12*(Q-$J$11)*(Q-$J$13)*(Q-$J$14)*(Q-$J$15)/($J$22-$J$11)/($J$12-$J$13)/($J$12-$J$14)/($J$12-$J$15) +$K$13*(Q-$J$11)*(Q-$J$12)*(Q-$J$14)*(Q-$J$15)/($J$13-$J$11)/($J$13-$J$12)/($J$13-$J$14)/($J$13-$J$15) +$K$14*(Q-$J$11)*(Q-$J$12)*(Q-$J$13)*(Q-$J$15)/($J$14-$J$11)/($J$14-$J$12)/($J$14-$J$13)/($J$14-$J$15)+$K$15*(Q-$J$11)*(Q-$J$12)*(Q-$J$13)*(Q-$J$14)/($J$15-$J$11)/($J$15-$J$12)/($J$15-$J$31)/($J$15-$J$14) -> 0.1064218575 | X67: =$K$11*(Q-$J$12)*(Q-$J$13)*(Q-$J$14)*(Q-$J$15)*(Q-$J$16)/($J$11-$J$12)/($J$11-$J$13)/($J$11-$J$14)/($J$11-$J$15)/($J$11-$J$16)+$K$12*(Q-$J$11)*(Q-$J$13)*(Q-$J$14)*(Q-$J$15)*(Q-$J$16)/($J$12-$J$11)/($J$12-$J$13)/($J$12-$J$14)/($J$12-$J$15)/($J$12-$J$16)+$K$13*(Q-$J$11)*(Q-$J$12)*(Q-$J$14)*(Q-$J$15)*(Q-$J$16)/($J$13-$J$11)/($J$13-$J$12)/($J$13-$J$14)/($J$13-$J$15)/($J$13-$J$16)+$K$14*(Q-$J$11)*(Q-$J$12)*(Q-$J$13)*(Q-$J$15)*(Q-$J$16)/($J$14-$J$11)/($J$14-$J$12)/($J$14-$J$13)/($J$14-$J$15)/($J$14-$J$16)+$K$15*(Q-$J$11)*(Q-$J$12)*(Q-$J$13)*(Q-$J$14)*(Q-$J$16)/($J$15-$J$11)/($J$15-$J$12)/($J$15-$J$13)/($J$15-$J$14)/($J$15-$J$16)+$K$16*(Q-$J$11)*(Q-$J$12)*(Q-$J$13)*(Q-$J$14)*(Q-J$15)/($J$16-$J$11)/($J$16-$J$12)/($J$16-$J$13)/($J$16-$J$14)/($J$16-$J$15) -> -0.5055536032 | Y67: =$K$11*(Q-$J$12)*(Q-$J$13)*(Q-$J$14)*(Q-$J$15)*(Q-$J$16)*(Q-$J$17)/($J$11-$J$12)/($J$11-$J$13)/($J$11-$J$14)/($J$11-$J$15)/($J$11-$J$16) /($J$11-$J$17)+$K$12*(Q-$J$11)*(Q-$J$13)*(Q-$J$14)*(Q-$J$15)*(Q-$J$16)*(Q-$J$17)/($J$12-$J$11)/($J$12-$J$13)/($J$12-$J$14)/($J$12-$J$15)/($J$12-$J$16) /($J$12-$J$17)+$K$13*(Q-$J$11)*(Q-$J$12)*(Q-$J$14)*(Q-$J$15)*(Q-$J$16)*(Q-$J$17)/($J$13-$J$11)/($J$13-$J$12)/($J$13-$J$14)/($J$13-$J$15)/($J$13-$J$16) /($J$13-$J$17)+$K$14*(Q-$J$11)*(Q-$J$12)*(Q-$J$13)*(Q-$J$15)*(Q-$J$16)*(Q-$J$17)/($J$14-$J$11)/($J$14-$J$12)/($J$14-$J$13)/($J$14-$J$15)/($J$14-$J$16) /($J$14-$J$17)+$K$15*(Q-$J$11)*(Q-$J$12)*(Q-$J$13)*(Q-$J$14)*(Q-$J$16)*(Q-$J$17)/($J$15-$J$11)/($J$15-$J$12)/($J$15-$J$13)/($J$15-$J$14)/($J$15-$J$16) /($J$15-$J$17)+$K$16*(Q-$J$11)*(Q-$J$12)*(Q-$J$13)*(Q-$J$14)*(Q-$J$15)*(Q-$J$17)/($J$16-$J$11)/($J$16-$J$12)/($J$16-$J$13)/($J$16-$J$14)/($J$16-$J$15) /($J$16-$J$17)+$K$17*(Q-$J$11)*(Q-$J$12)*(Q-$J$13)*(Q-$J$14)*(Q-$J$15)*(Q-$J$16)/($J$17-$J$11)/($J$17-$J$12)/($J$17-$J$13)/($J$17-$J$14)/($J$17-$J$15) /($J$17-$J$16) -> -0.4880734724 | Z67: 0.1064218575
C68: -0.6758104738 | D68: -0.9760770742 | E68: -0.4409304675 | M68: -0.9119524553 | N68: -0.9585296507 | O68: -0.9847607812 | P68: -0.9847607812 | Q68: -0.9768662529 | R68: -0.9731234523 | S68: -0.98476 | T68: -0.3959496806 | U68: -0.3464855495 | V68: -0.3955055803 | W68: 0.09175865363 | X68: -0.4924427116 | Y68: -0.4748739033 | Z68: =IF(n=1,T68,IF(n=2,U68,IF(n=3,V68,IF(n=4,W68,IF(n=5,X68,Y68))))) -> 0.09175865363
C69: =C68+B$12 -> -0.6708229426 | D69: -0.9738597239 | E69: -0.4274520668 | M69: -0.9084335337 | N69: -0.9560052094 | O69: -0.9825986857 | P69: -0.9825986857 | Q69: -0.9746591338 | R69: -0.9709049957 | S69: -0.98260 | T69: -0.3822370687 | U69: -0.3317168178 | V69: -0.3814139906 | W69: 0.07790968047 | X69: -0.4791287785 | Y69: -0.4615067521 | Z69: 0.07790968047
C70: -0.6658354115 | D70: -0.9715454734 | E70: -0.4138779703 | M70: -0.9049146121 | N70: -0.9534131164 | O70: -0.9803231344 | P70: -0.9803231344 | Q70: -0.9723536145 | R70: -0.9685953525 | S70: -0.98032 | T70: -0.3685244569 | U70: -0.3170199309 | V70: -0.3673086484 | W70: 0.064860673 | X70: -0.4656194564 | Y70: -0.4479780722 | Z70: 0.064860673
C71: -0.6608478803 | D71: -0.9691345532 | E71: -0.4002112168 | M71: -0.9013956905 | N71: -0.9507533717 | O71: -0.9779349709 | P71: -0.9779349709 | Q71: -0.9699499523 | R71: -0.9661944471 | S71: -0.97793 | T71: -0.354811845 | U71: -0.3023948889 | V71: -0.35319113 | W71: 0.05259745869 | X71: -0.4519223165 | Y71: -0.434293873 | Z71: 0.05259745869
C72: -0.6558603491 | D72: -0.9666272032 | E72: -0.3864548661 | M72: -0.8978767689 | N72: -0.9480259752 | O72: -0.9754350386 | P72: -0.9754350386 | Q72: -0.967448415 | R72: -0.9637022228 | S72: -0.97544 | T72: -0.3410992332 | U72: -0.2878416918 | V72: -0.3390630118 | W72: 0.04110595748 | X72: -0.4380448491 | Y72: -0.4204601204 | Z72: 0.04110595748
C73: -0.650872818 | D73: -0.9640236726 | E73: -0.3726119977 | M73: -0.8943578473 | N73: -0.9452309271 | O73: -0.9728241811 | P73: -0.9728241811 | Q73: -0.9648492811 | R73: -0.9611186408 | S73: -0.97282 | T73: -0.3273866214 | U73: -0.2733603396 | V73: -0.3249258702 | W73: 0.0303721818 | X73: -0.4239944636 | Y73: -0.4064827363 | Z73: 0.0303721818
C74: -0.6458852868 | D74: -0.9613242208 | E74: -0.3586857108 | M74: -0.8908389257 | N74: -0.9423682272 | O74: -0.9701032419 | P74: -0.9701032419 | Q74: -0.9621528394 | R74: -0.9584436811 | S74: -0.97010 | T74: -0.3136740095 | U74: -0.2589508323 | V74: -0.3107812815 | W74: 0.02038223652 | X74: -0.409778489 | Y74: -0.3923675984 | Z74: 0.02038223652
C75: -0.6408977556 | D75: -0.9585291161 | E75: -0.3446791232 | M75: -0.8873200041 | N75: -0.9394378755 | O75: -0.9672730646 | P75: -0.9672730646 | Q75: -0.9593593892 | R75: -0.9556773411 | S75: -0.96727 | T75: -0.2999613977 | U75: -0.2446131699 | V75: -0.2966308221 | W75: 0.01112231903 | X75: -0.3954041744 | Y75: -0.3781205402 | Z75: 0.01112231903
C76: -0.6359102244 | D76: -0.9556386369 | E76: -0.3305953705 | M76: -0.8838010825 | N76: -0.9364398722 | O76: -0.9643344927 | P76: -0.9643344927 | Q76: -0.9564692399 | R76: -0.9528196364 | S76: -0.96433 | T76: -0.2862487858 | U76: -0.2303473524 | V76: -0.2824760685 | W76: 0.002578719175 | X76: -0.3808786889 | Y76: -0.3637473506 | Z76: 0.002578719175
C77: -0.6309226933 | D77: -0.9526530705 | E77: -0.3164376057 | M77: -0.8802821609 | N77: -0.9333742171 | O77: -0.9612883697 | P77: -0.9612883697 | Q77: -0.9534827114 | R77: -0.9498706002 | S77: -0.96129 | T77: -0.272536174 | U77: -0.2161533798 | V77: -0.268318597 | W77: -0.005262180725 | X77: -0.3662091222 | Y77: -0.349253774 | Z77: -0.005262180725
C78: -0.6259351621 | D78: -0.9495727142 | E78: -0.3022089985 | M78: -0.8767632393 | N78: -0.9302409103 | O78: -0.9581355393 | P78: -0.9581355393 | Q78: -0.9504001335 | R78: -0.9468302831 | S78: -0.95814 | T78: -0.2588235621 | U78: -0.202031252 | V78: -0.2541599839 | W78: -0.01241390587 | X78: -0.3514024849 | Y78: -0.33464551 | Z78: -0.01241390587
C79: -0.6209476309 | D79: -0.9463978745 | E79: -0.2879127342 | M79: -0.8732443177 | N79: -0.9270399518 | O79: -0.9548768448 | P79: -0.9548768448 | Q79: -0.9472218462 | R79: -0.943698753 | S79: -0.95488 | T79: -0.2451109503 | U79: -0.1879809692 | V79: -0.2400018057 | W79: -0.01888988898 | X79: -0.3364657086 | Y79: -0.3199282131 | Z79: -0.01888988898
C80: -0.6159600998 | D80: -0.9431288671 | E80: -0.2735520135 | M80: -0.8697253961 | N80: -0.9237713416 | O80: -0.9515131299 | P80: -0.9515131299 | Q80: -0.9439481995 | R80: -0.9404760949 | S80: -0.95151 | T80: -0.2313983384 | U80: -0.1740025312 | V80: -0.2258456387 | W80: -0.0247034703 | X80: -0.3214056465 | Y80: -0.3051074928 | Z80: -0.0247034703
C81: -0.6109725686 | D81: -0.9397660174 | E81: -0.2591300512 | M81: -0.8662064745 | N81: -0.9204350797 | O81: -0.9480452382 | P81: -0.9480452382 | Q81: -0.9405795532 | R81: -0.9371624106 | S81: -0.94805 | T81: -0.2176857266 | U81: -0.1600959382 | V81: -0.2116930594 | W81: -0.02986789761 | X81: -0.3062290736 | Y81: -0.2901889135 | Z81: -0.02986789761
C82: -0.6059850374 | D82: -0.9363096601 | E82: -0.2446500763 | M82: -0.8626875529 | N82: -0.917031166 | O82: -0.944474013 | P82: -0.944474013 | Q82: -0.9371162769 | R82: -0.933757819 | S82: -0.94447 | T82: -0.2039731147 | U82: -0.14626119 | V82: -0.197545644 | W82: -0.03439632619 | X82: -0.2909426868 | Y82: -0.2751779938 | Z82: -0.03439632619
C83: -0.6009975062 | D83: -0.9327601389 | E83: -0.2301153303 | M83: -0.8591686313 | N83: -0.9135596006 | O83: -0.940800298 | P83: -0.940800298 | Q83: -0.9335587502 | R83: -0.9302624553 | S83: -0.94080 | T83: -0.1902605029 | U83: -0.1324982867 | V83: -0.1834049691 | W83: -0.03830181888 | X83: -0.2755531056 | Y83: -0.2600802071 | Z83: -0.03830181888
C84: -0.5960099751 | D84: -0.9291178072 | E84: -0.2155290672 | M84: -0.8556497097 | N84: -0.9100203835 | O84: -0.9370249368 | P84: -0.9370249368 | Q84: -0.9299073622 | R84: -0.926676471 | S84: -0.93702 | T84: -0.1765478911 | U84: -0.1188072284 | V84: -0.1692726108 | W84: -0.041597346 | X84: -0.2600668721 | Y84: -0.2449009809 | Z84: -0.041597346
C85: -0.5910224439 | D85: -0.9253830272 | E85: -0.2008945525 | M85: -0.8521307881 | N85: -0.9064135147 | O85: -0.9331487727 | P85: -0.9331487727 | Q85: -0.9261625114 | R85: -0.9230000341 | S85: -0.93315 | T85: -0.1628352792 | U85: -0.1051880149 | V85: -0.1551501458 | W85: -0.04429578542 | X85: -0.2444904515 | Y85: -0.2296456969 | Z85: -0.04429578542
C86: -0.5860349127 | D86: -0.9215561707 | E86: -0.1862150626 | M86: -0.8486118665 | N86: -0.9027389941 | O86: -0.9291726495 | P86: -0.9291726495 | Q86: -0.9223246061 | R86: -0.9192333285 | S86: -0.92917 | T86: -0.1491226674 | U86: -0.09164064628 | V86: -0.1410391502 | W86: -0.04640992253 | X86: -0.2288302323 | Y86: -0.2143196909 | Z86: -0.04640992253
C87: -0.5810473815 | D87: -0.9176376184 | E87: -0.1714938838 | M87: -0.8450929449 | N87: -0.8989968218 | O87: -0.9250974106 | P87: -0.9250974106 | Q87: -0.9183940638 | R87: -0.9153765538 | S87: -0.92510 | T87: -0.1354100555 | U87: -0.07816512258 | V87: -0.1269412005 | W87: -0.04795245025 | X87: -0.2130925266 | Y87: -0.1989282524 | Z87: -0.04795245025
C88: -0.5760598504 | D88: -0.9136277602 | E88: -0.1567343118 | M88: -0.8415740233 | N88: -0.8951869978 | O88: -0.9209238995 | P88: -0.9209238995 | Q88: -0.9143713116 | R88: -0.9114299257 | S88: -0.92092 | T88: -0.1216974437 | U88: -0.06476144378 | V88: -0.1128578732 | W88: -0.048935969 | X88: -0.1972835706 | Y88: -0.1834766248 | Z88: -0.048935969
C89: -0.5710723192 | D89: -0.909526995 | E89: -0.1419396508 | M89: -0.8380551017 | N89: -0.8913095221 | O89: -0.9166529599 | P89: -0.9166529599 | Q89: -0.9102567857 | R89: -0.907393675 | S89: -0.91665 | T89: -0.1079848318 | U89: -0.05142960986 | V89: -0.09879074444 | W89: -0.04937298676 | X89: -0.1814095246 | Y89: -0.167970005 | Z89: -0.04937298676
C90: -0.566084788 | D90: -0.905335731 | E90: -0.1271132132 | M90: -0.8345361801 | N90: -0.8873643946 | O90: -0.9122854352 | P90: -0.9122854352 | Q90: -0.9060509314 | R90: -0.9032680481 | S90: -0.91229 | T90: -0.09427221998 | U90: -0.03816962084 | V90: -0.08474139076 | W90: -0.04927591899 | X90: -0.1654764737 | Y90: -0.1524135435 | Z90: -0.04927591899
C91: -0.5610972569 | D91: -0.9010543851 | E91: -0.112258318 | M91: -0.8310172585 | N91: -0.8833516155 | O91: -0.9078221689 | P91: -0.9078221689 | Q91: -0.9017542034 | R91: -0.8990533065 | S91: -0.90782 | T91: -0.08055960814 | U91: -0.02498147671 | V91: -0.07071138851 | W91: -0.04865708872 | X91: -0.1494904277 | Y91: -0.136812344 | Z91: -0.04865708872
C92: -0.5561097257 | D92: -0.8966833834 | E92: -0.09737829104 | M92: -0.8274983369 | N92: -0.8792711846 | O92: -0.9032640047 | P92: -0.9032640047 | Q92: -0.897367065 | R92: -0.8947497266 | S92: -0.90326 | T92: -0.06684699629 | U92: -0.01186517748 | V92: -0.05670231405 | W92: -0.04752872646 | X92: -0.1334573217 | Y92: -0.1211714635 | Z92: -0.04752872646
C93: -0.5511221945 | D93: -0.8922231607 | E93: -0.08247646349 | M93: -0.8239794153 | N93: -0.875123102 | O93: -0.898611786 | P93: -0.898611786 | Q93: -0.892889989 | R93: -0.8903575997 | S93: -0.89861 | T93: -0.05313438445 | U93: 0.001179276863 | V93: -0.04271574378 | W93: -0.04590297028 | X93: -0.1173830163 | Y93: -0.1054959122 | Z93: -0.04590297028
C94: -0.5461346633 | D94: -0.8876741609 | E94: -0.06755617153 | M94: -0.8204604937 | N94: -0.8709073677 | O94: -0.8938663564 | P94: -0.8938663564 | Q94: -0.8883234565 | R94: -0.8858772319 | S94: -0.89387 | T94: -0.0394217726 | U94: 0.01415188631 | V94: -0.02875325408 | W94: -0.04379186575 | X94: -0.1012732981 | Y94: -0.08979065312 | Z94: -0.04379186575
C95: -0.5411471322 | D95: -0.8830368366 | E95: -0.05262075542 | M95: -0.8169415721 | N95: -0.8666239816 | O95: -0.8890285595 | P95: -0.8890285595 | Q95: -0.8836679578 | R95: -0.8813089436 | S95: -0.88903 | T95: -0.02570916075 | U95: 0.02705265087 | V95: -0.01481642131 | W95: -0.04120736596 | X95: -0.08513387957 | Y95: -0.07406060239 | Z95: -0.04120736596
C96: -0.536159601 | D96: -0.8783116492 | E96: -0.03767355884 | M96: -0.8134226505 | N96: -0.8622729438 | O96: -0.8840992387 | P96: -0.8840992387 | Q96: -0.8789239918 | R96: -0.8766530695 | S96: -0.88410 | T96: -0.01199654891 | U96: 0.03988157053 | V96: -0.0009068218746 | W96: -0.03816133156 | X96: -0.06897039988 | Y96: -0.05831062873 | Z96: -0.03816133156
C97: -0.5311720698 | D97: -0.8734990689 | E97: -0.02271792809 | M97: -0.8099037289 | N97: -0.8578542543 | O97: -0.8790792375 | P97: -0.8790792375 | Q97: -0.8740920659 | R97: -0.8719099586 | S97: -0.87908 | T97: 0.001716062937 | U97: 0.0526386453 | V97: 0.01297396786 | W97: -0.03466553068 | X97: -0.05278842487 | Y97: -0.04254555359 | Z97: -0.03466553068
C98: -0.5261845387 | D98: -0.8685995746 | E98: -0.007757211366 | M98: -0.8063848073 | N98: -0.8533679131 | O98: -0.8739693997 | P98: -0.8739693997 | Q98: -0.8691726963 | R98: -0.8670799737 | S98: -0.87397 | T98: 0.01542867478 | U98: 0.06532387518 | V98: 0.02682437151 | W98: -0.030731639 | X98: -0.03659344748 | Y98: -0.02677015096 | Z98: -0.030731639
C99: -0.5211970075 | D99: -0.8636136536 | E99: 0.007205242006 | M99: -0.8028658857 | N99: -0.8488139202 | O99: -0.8687705686 | P99: -0.8687705686 | Q99: -0.8641664073 | R99: -0.8621634916 | S99: -0.86877 | T99: 0.02914128663 | U99: 0.07793726017 | V99: 0.04064281269 | W99: -0.0263712397 | X99: -0.02039088807 | Y99: -0.01098914729 | Z99: -0.0263712397
C100: -0.5162094763 | D100: -0.8585418022 | E100: 0.0221660823 | M100: -0.7993469641 | N100: -0.8441922755 | O100: -0.8634835878 | P100: -0.8634835878 | Q100: -0.859073732 | R100: -0.8571609027 | S100: -0.86348 | T100: 0.04285389847 | U100: 0.09047880026 | V100: 0.05442771502 | W100: -0.02159582352 | X100: -0.00418609471 | Y100: 0.004792778614 | Z100: -0.02159582352
C101: -0.5112219451 | D101: -0.853384525 | E101: 0.03712196017 | M101: -0.7958280425 | N101: -0.8395029792 | O101: -0.8581093009 | P101: -0.8581093009 | Q101: -0.8538952117 | R101: -0.8520726106 | S101: -0.85811 | T101: 0.05656651032 | U101: 0.1029484955 | V101: 0.06817750213 | W101: -0.0164167887 | X101: 0.01201565652 | Y101: 0.02057099569 | Z101: -0.0164167887
C102: -0.506234414 | D102: -0.8481423351 | E102: 0.05206952735 | M102: -0.7923091209 | N102: -0.8347460311 | O102: -0.8526485513 | P102: -0.8526485513 | Q102: -0.8486313956 | R102: -0.8468990325 | S102: -0.85265 | T102: 0.07027912217 | U102: 0.1153463458 | V102: 0.08189059763 | W102: -0.01084544099 | X102: 0.02820916117 | Y102: 0.03634092072 | Z102: -0.01084544099
C103: -0.5012468828 | D103: -0.8428157542 | E103: 0.06700543747 | M103: -0.7887901993 | N103: -0.8299214312 | O103: -0.8471021827 | P103: -0.8471021827 | Q103: -0.8432828415 | R103: -0.8416405988 | S103: -0.84710 | T103: 0.08399173401 | U103: 0.1276723512 | V103: 0.09556542515 | W103: -0.004892993699 | X103: 0.04438928616 | Y103: 0.05209801841 | Z103: -0.004892993699
C104: -0.4962593516 | D104: -0.8374053123 | E104: 0.08192634675 | M104: -0.7852712777 | N104: -0.8250291797 | O104: -0.8414710386 | P104: -0.8414710386 | Q104: -0.8378501151 | R104: -0.8362977526 | S104: -0.84147 | T104: 0.09770434586 | U104: 0.1399265117 | V104: 0.1092004083 | W104: 0.001429432371 | X104: 0.06055096945 | Y104: 0.06783780148 | Z104: 0.001429432371
C105: -0.4912718204 | D105: -0.8319115476 | E105: 0.09682891476 | M105: -0.7817523561 | N105: -0.8200692764 | O105: -0.8357559624 | P105: -0.8357559624 | Q105: -0.8323337901 | R105: -0.83087095 | S105: -0.83576 | T105: 0.1114169577 | U105: 0.1521088273 | V105: 0.1227939707 | W105: 0.008110808879 | X105: 0.07668921969 | Y105: 0.08355583077 | Z105: 0.008110808879
C106: -0.4862842893 | D106: -0.8263350069 | E106: 0.1117098052 | M106: -0.7782334345 | N106: -0.8150417214 | O106: -0.8299577978 | P106: -0.8299577978 | Q106: -0.826734448 | R106: -0.8253606598 | S106: -0.82996 | T106: 0.1251295695 | U106: 0.1642192981 | V106: 0.136344536 | W106: 0.01514019997 | X106: 0.09279911598 | Y106: 0.0992477153 | Z106: 0.01514019997
C107: -0.4812967581 | D107: -0.8206762449 | E107: 0.1265656866 | M107: -0.7747145129 | N107: -0.8099465147 | O107: -0.8240773883 | P107: -0.8240773883 | Q107: -0.8210526783 | R107: -0.8197673631 | S107: -0.82408 | T107: 0.1388421814 | U107: 0.1762579239 | V107: 0.1498505277 | W107: 0.02250676224 | X107: 0.1088758075 | Y107: 0.1149091123 | Z107: 0.02250676224
C108: -0.4763092269 | D108: -0.8149358249 | E108: 0.1413932331 | M108: -0.7711955913 | N108: -0.8047836563 | O108: -0.8181155773 | P108: -0.8181155773 | Q108: -0.8152890783 | R108: -0.8140915534 | S108: -0.81812 | T108: 0.1525547932 | U108: 0.1882247049 | V108: 0.1633103696 | W108: 0.03019974481 | X108: 0.1249145132 | Y108: 0.1305357275 | Z108: 0.03019974481
C109: -0.4713216958 | D109: -0.8091143178 | E109: 0.1561891252 | M109: -0.7676766697 | N109: -0.7995531461 | O109: -0.8120732086 | P109: -0.8120732086 | Q109: -0.8094442527 | R109: -0.8083337364 | S109: -0.81207 | T109: 0.1662674051 | U109: 0.2001196409 | V109: 0.1767224852 | W109: 0.03820848922 | X109: 0.1409105215 | Y109: 0.1461233149 | Z109: 0.03820848922
C110: -0.4663341646 | D110: -0.8032123031 | E110: 0.1709500504 | M110: -0.7641577481 | N110: -0.7942549843 | O110: -0.8059511255 | P110: -0.8059511255 | Q110: -0.803518814 | R110: -0.8024944299 | S110: -0.80595 | T110: 0.1799800169 | U110: 0.2119427321 | V110: 0.1900852981 | W110: 0.04652242954 | X110: 0.15685919 | Y110: 0.1616676771 | Z110: 0.04652242954
C111: -0.4613466334 | D111: -0.7972303679 | E111: 0.1856727042 | M111: -0.7606388266 | N111: -0.7888891707 | O111: -0.7997501716 | P111: -0.7997501716 | Q111: -0.7975133823 | R111: -0.7965741632 | S111: -0.79975 | T111: 0.1936926288 | U111: 0.2236939783 | V111: 0.203397232 | W111: 0.05513109227 | X111: 0.1727559452 | Y111: 0.1771646651 | Z111: 0.05513109227
C112: -0.4563591022 | D112: -0.7911691074 | E112: 0.2003537905 | M112: -0.757119905 | N112: -0.7834557054 | O112: -0.7934711905 | P112: -0.7934711905 | Q112: -0.7914285849 | R112: -0.7905734777 | S112: -0.79347 | T112: 0.2074052406 | U112: 0.2353733797 | V112: 0.2166567105 | W112: 0.06402409642 | X112: 0.188596282 | Y112: 0.1926101787 | Z112: 0.06402409642
C113: -0.4513715711 | D113: -0.7850291248 | E113: 0.2149900226 | M113: -0.7536009834 | N113: -0.7779545883 | O113: -0.7871150258 | P113: -0.7871150258 | Q113: -0.7852650567 | R113: -0.784492926 | S113: -0.78712 | T113: 0.2211178525 | U113: 0.2469809362 | V113: 0.2298621572 | W113: 0.07319115346 | X113: 0.2043757637 | Y113: 0.2080001663 | Z113: 0.07319115346
C114: -0.4463840399 | D114: -0.778811031 | E114: 0.2295781238 | M114: -0.7500820618 | N114: -0.7723858196 | O114: -0.7806825208 | P114: -0.7806825208 | Q114: -0.7790234397 | R114: -0.7783330722 | S114: -0.78068 | T114: 0.2348304643 | U114: 0.2585166478 | V114: 0.2430119958 | W114: 0.08262206734 | X114: 0.2200900213 | Y114: 0.223330625 | Z114: 0.08262206734
C115: -0.4413965087 | D115: -0.7725154446 | E115: 0.2441148282 | M115: -0.7465631402 | N115: -0.7667493991 | O115: -0.7741745193 | P115: -0.7741745193 | Q115: -0.7727043832 | R115: -0.7720944917 | S115: -0.77417 | T115: 0.2485430762 | U115: 0.2699805145 | V115: 0.2561046497 | W115: 0.09230673449 | X115: 0.2357347535 | Y115: 0.238597601 | Z115: 0.09230673449
C116: -0.4364089776 | D116: -0.7661429922 | E116: 0.2585968814 | M116: -0.7430442186 | N116: -0.7610453269 | O116: -0.7675918646 | P116: -0.7675918646 | Q116: -0.7663085435 | R116: -0.7657777706 | S116: -0.76759 | T116: 0.262255688 | U116: 0.2813725363 | V116: 0.2691385428 | W116: 0.1022351438 | X116: 0.2513057264 | Y116: 0.2537971889 | Z116: 0.1022351438
C117: -0.4314214464 | D117: -0.7596943077 | E117: 0.2730210412 | M117: -0.739525297 | N117: -0.755273603 | O117: -0.7609354004 | P117: -0.7609354004 | Q117: -0.7598365841 | R117: -0.7593835063 | S117: -0.76094 | T117: 0.2759682998 | U117: 0.2926927132 | V117: 0.2821120985 | W117: 0.1123973767 | X117: 0.2667987729 | Y117: 0.2689255326 | Z117: 0.1123973767
C118: -0.4264339152 | D118: -0.7531700329 | E118: 0.2873840784 | M118: -0.7360063754 | N118: -0.7494342273 | O118: -0.7542059702 | P118: -0.7542059702 | Q118: -0.7532891754 | R118: -0.7529123067 | S118: -0.75421 | T118: 0.2896809117 | U118: 0.3039410452 | V118: 0.2950237405 | W118: 0.1227836069 | X118: 0.2822097927 | Y118: 0.2839788248 | Z118: 0.1227836069
C119: -0.421446384 | D119: -0.7465708168 | E119: 0.3016827775 | M119: -0.7324874538 | N119: -0.7435271999 | O119: -0.7474044175 | P119: -0.7474044175 | Q119: -0.7466669946 | R119: -0.7463647902 | S119: -0.74740 | T119: 0.3033935235 | U119: 0.3151175324 | V119: 0.3078718925 | W119: 0.133384101 | X119: 0.2975347516 | Y119: 0.2989533072 | Z119: 0.133384101
C120: -0.4164588529 | D120: -0.7398973162 | E120: 0.3159139374 | M120: -0.7289685322 | N120: -0.7375525209 | O120: -0.7405315859 | P120: -0.7405315859 | Q120: -0.7399707258 | R120: -0.7397415859 | S120: -0.74053 | T120: 0.3171061354 | U120: 0.3262221746 | V120: 0.320654978 | W120: 0.1441892175 | X120: 0.3127696817 | Y120: 0.3138452707 | Z120: 0.1441892175
C121: -0.4114713217 | D121: -0.733150195 | E121: 0.330074372 | M121: -0.7254496106 | N121: -0.73151019 | O121: -0.7335883189 | P121: -0.7335883189 | Q121: -0.7332010598 | R121: -0.7330433329 | S121: -0.73359 | T121: 0.3308187472 | U121: 0.337254972 | V121: 0.3333714206 | W121: 0.1551894079 | X121: 0.3279106807 | Y121: 0.3286510551 | Z121: 0.1551894079
C122: -0.4064837905 | D122: -0.7263301246 | E122: 0.3441609112 | M122: -0.721930689 | N122: -0.7254002075 | O122: -0.7265754601 | P122: -0.7265754601 | Q122: -0.7263586941 | R122: -0.7262706806 | S122: -0.72658 | T122: 0.3445313591 | U122: 0.3482159244 | V122: 0.3460196441 | W122: 0.1663752159 | X122: 0.3429539118 | Y122: 0.3433670494 | Z122: 0.1663752159
C123: -0.4014962594 | D123: -0.7194377836 | E123: 0.3581704013 | M123: -0.7184117674 | N123: -0.7192225733 | O123: -0.7194938529 | P123: -0.7194938529 | Q123: -0.7194443325 | R123: -0.7194242882 | S123: -0.71949 | T123: 0.3582439709 | U123: 0.359105032 | V123: 0.3585980719 | W123: 0.1777372777 | X123: 0.3578956032 | Y123: 0.3579896918 | Z123: 0.1777372777
C124: -0.3965087282 | D124: -0.7124738578 | E124: 0.3720997061 | M124: -0.7148928458 | N124: -0.7129772873 | O124: -0.7123443409 | P124: -0.7123443409 | Q124: -0.7124586856 | R124: -0.7125048247 | S124: -0.71234 | T124: 0.3719565828 | U124: 0.3699222946 | V124: 0.3711051278 | W124: 0.189266322 | X124: 0.3727320479 | Y124: 0.3725154697 | Z124: 0.189266322
C125: -0.391521197 | D125: -0.7054390401 | E125: 0.385945707 | M125: -0.7113739242 | N125: -0.7066643496 | O125: -0.7051277677 | P125: -0.7051277677 | Q125: -0.7054024703 | R125: -0.705512969 | S125: -0.70513 | T125: 0.3856691946 | U125: 0.3806677124 | V125: 0.3835392353 | W125: 0.2009531701 | X125: 0.3874596033 | Y125: 0.3869409198 | Z125: 0.2009531701
C126: -0.3865336658 | D126: -0.6983340305 | E126: 0.3997053043 | M126: -0.7078550026 | N126: -0.7002837602 | O126: -0.6978449768 | P126: -0.6978449768 | Q126: -0.6982764098 | R126: -0.6984494091 | S126: -0.69784 | T126: 0.3993818065 | U126: 0.3913412853 | V126: 0.3958988181 | W126: 0.2127887356 | X126: 0.4020746912 | Y126: 0.4012626279 | Z126: 0.2127887356
C127: -0.3815461347 | D127: -0.6911595359 | E127: 0.4133754176 | M127: -0.704336081 | N127: -0.693835519 | O127: -0.6904968117 | P127: -0.6904968117 | Q127: -0.6910812336 | R127: -0.6913148428 | S127: -0.69050 | T127: 0.4130944183 | U127: 0.4019430133 | V127: 0.4081822997 | W127: 0.2247640246 | X127: 0.416573797 | Y127: 0.4154772292 | Z127: 0.2247640246
C128: -0.3765586035 | D128: -0.6839162702 | E128: 0.4269529865 | M128: -0.7008171594 | N128: -0.6873196262 | O128: -0.683084116 | P128: -0.683084116 | Q128: -0.6838176772 | R128: -0.6841099766 | S128: -0.68308 | T128: 0.4268070302 | U128: 0.4124728964 | V128: 0.4203881039 | W128: 0.2368701358 | X128: 0.4309534698 | Y128: 0.4295814081 | Z128: 0.2368701358
C129: -0.3715710723 | D129: -0.6766049542 | E129: 0.4404349712 | M129: -0.6972982378 | N129: -0.6807360816 | O129: -0.6756077331 | P129: -0.6756077331 | Q129: -0.6764864823 | R129: -0.6768355266 | S129: -0.67561 | T129: 0.440519642 | U129: 0.4229309346 | V129: 0.4325146541 | W129: 0.2490982603 | X129: 0.4452103217 | Y129: 0.4435718984 | Z129: 0.2490982603
C130: -0.3665835411 | D130: -0.6692263152 | E130: 0.4538183535 | M130: -0.6937793162 | N130: -0.6740848853 | O130: -0.6680685068 | P130: -0.6680685068 | Q130: -0.6690883967 | R130: -0.6694922173 | S130: -0.66807 | T130: 0.4542322538 | U130: 0.4333171279 | V130: 0.4445603741 | W130: 0.2614396816 | X130: 0.459341028 | Y130: 0.4574454833 | Z130: 0.2614396816
C131: -0.36159601 | D131: =SIN(2*t) -> -0.6617810876 | E131: =COS(3*t) -> 0.4671001373 | M131: =$K$1*(Q-$J$2)/($J$1-$J$2)+$K$2*(Q-$J$1)/($J$2-$J$1) -> -0.6902603946 | N131: =$K$1*(Q-$J$2)*(Q-$J$3)/($J$1-$J$2)/($J$1-$J$3)+$K$2*(Q-$J$1)*(Q-$J$3)/($J$2-$J$1)/($J$2-$J$3)+$K$3*(Q-$J$1)*(Q-$J$2)/($J$3-$J$1)/($J$3-$J$2) -> -0.6673660373 | O131: =$K$1*(Q-$J$2)*(Q-$J$3)*(Q-$J$4)/($J$1-$J$2)/($J$1-$J$3)/($J$1-$J$4)+$K$2*(Q-$J$1)*(Q-$J$3)*(Q-$J$4)/($J$2-$J$1)/($J$2-$J$3) /($J$2-$J$4)+$K$3*(Q-$J$1)*(Q-$J$2)*(Q-$J$4)/($J$3-$J$1)/($J$3-$J$2) /($J$3-$J$4)+$K$4*(Q-$J$1)*(Q-$J$2)*(Q-$J$3)/($J$4-$J$1)/($J$4-$J$2) /($J$4-$J$3) -> -0.6604672804 | P131: =$K$1*(Q-$J$2)*(Q-$J$3)*(Q-$J$4)*(Q-$J$5)/($J$1-$J$2)/($J$1-$J$3)/($J$1-$J$4)/($J$1-$J$5) +$K$2*(Q-$J$1)*(Q-$J$3)*(Q-$J$4)*(Q-$J$5)/($J$2-$J$1)/($J$2-$J$3)/($J$2-$J$4)/($J$2-$J$5) +$K$3*(Q-$J$1)*(Q-$J$2)*(Q-$J$4)*(Q-$J$5)/($J$3-$J$1)/($J$3-$J$2)/($J$3-$J$4)/($J$3-$J$5) +$K$4*(Q-$J$1)*(Q-$J$2)*(Q-$J$3)*(Q-$J$5)/($J$4-$J$1)/($J$4-$J$2)/($J$4-$J$3)/($J$4-$J$5)+$K$5*(Q-$J$1)*(Q-$J$2)*(Q-$J$3)*(Q-$J$4)/($J$5-$J$1)/($J$5-$J$2)/($J$5-$J$3)/($J$5-$J$4) -> -0.6604672804 | Q131: =$K$1*(Q-$J$2)*(Q-$J$3)*(Q-$J$4)*(Q-$J$5)*(Q-$J$6)/($J$1-$J$2)/($J$1-$J$3)/($J$1-$J$4)/($J$1-$J$5)/($J$1-$J$6) +$K$2*(Q-$J$1)*(Q-$J$3)*(Q-$J$4)*(Q-$J$5)*(Q-$J$6)/($J$2-$J$1)/($J$2-$J$3)/($J$2-$J$4)/($J$2-$J$5)/($J$2-$J$6) +$K$3*(Q-$J$1)*(Q-$J$2)*(Q-$J$4)*(Q-$J$5)*(Q-$J$6)/($J$3-$J$1)/($J$3-$J$2)/($J$3-$J$4)/($J$3-$J$5)/($J$3-$J$6) +$K$4*(Q-$J$1)*(Q-$J$2) *(Q-$J$3)*(Q-$J$5)*(Q-$J$6)/($J$4-$J$1)/($J$4-$J$2)/($J$4-$J$3)/($J$4-$J$5)/($J$4-$J$6) +$K$5*(Q-$J$1)*(Q-$J$2) *(Q-$J$3)*(Q-$J$4)*(Q-$J$6)/($J$5-$J$1)/($J$5-$J$2)/($J$5-$J$3)/($J$5-$J$4)/($J$5-$J$6) +$K$6*(Q-$J$1)*(Q-$J$2) *(Q-$J$3)*(Q-$J$4)*(Q-$J$5)/($J$6-$J$1)/($J$6-$J$2)/($J$6-$J$3)/($J$6-$J$4)/($J$6-$J$5) -> -0.661624174 | R131: =$K$1*(Q-$J$2)*(Q-$J$3)*(Q-$J$4)*(Q-$J$5)*(Q-$J$6)*(Q-$J$7)/($J$1-$J$2)/($J$1-$J$3)/($J$1-$J$4)/($J$1-$J$5)/($J$1-$J$6) /($J$1-$J$7)+$K$2*(Q-$J$1)*(Q-$J$3)*(Q-$J$4)*(Q-$J$5)*(Q-$J$6)*(Q-$J$7)/($J$2-$J$1)/($J$2-$J$3)/($J$2-$J$4)/($J$2-$J$5)/($J$2-$J$6) /($J$2-$J$7)+$K$3*(Q-$J$1)*(Q-$J$2)*(Q-$J$4)*(Q-$J$5)*(Q-$J$6)*(Q-$J$7)/($J$3-$J$1)/($J$3-$J$2)/($J$3-$J$4)/($J$3-$J$5)/($J$3-$J$6) /($J$3-$J$7)+$K$4*(Q-$J$1)*(Q-$J$2)*(Q-$J$3)*(Q-$J$5)*(Q-$J$6)*(Q-$J$7)/($J$4-$J$1)/($J$4-$J$2)/($J$4-$J$3)/($J$4-$J$5)/($J$4-$J$6) /($J$4-$J$7)+$K$5*(Q-$J$1)*(Q-$J$2)*(Q-$J$3)*(Q-$J$4)*(Q-$J$6)*(Q-$J$7)/($J$5-$J$1)/($J$5-$J$2)/($J$5-$J$3)/($J$5-$J$4)/($J$5-$J$6) /($J$5-$J$7)+$K$6*(Q-$J$1)*(Q-$J$2)*(Q-$J$3)*(Q-$J$4)*(Q-$J$5)*(Q-$J$7)/($J$6-$J$1)/($J$6-$J$2)/($J$6-$J$3)/($J$6-$J$4)/($J$6-$J$5) /($J$6-$J$7)+$K$7*(Q-$J$1)*(Q-$J$2)*(Q-$J$3)*(Q-$J$4)*(Q-$J$5)*(Q-$J$6)/($J$7-$J$1)/($J$7-$J$2)/($J$7-$J$3)/($J$7-$J$4)/($J$7-$J$5) /($J$7-$J$6) -> -0.6620807822 | S131: =IF(n=1,M131,IF(n=2,N131,IF(n=3,O131,IF(n=4,P131,IF(n=5,Q131,R131))))) -> -0.66047 | T131: =$K$11*(Q-$J$12)/($J$11-$J$12)+$K$12*(Q-$J$11)/($J$12-$J$11) -> 0.4679448657 | U131: =$K$11*(Q-$J$12)*(Q-$J$13)/($J$11-$J$12)/($J$11-$J$13)+$K$12*(Q-$J$11)*(Q-$J$13)/($J$12-$J$11)/($J$12-$J$13)+$K$13*(Q-$J$11)*(Q-$J$12)/($J$13-$J$11)/($J$13-$J$12) -> 0.4436314763 | V131: =$K$11*(Q-$J$12)*(Q-$J$13)*(Q-$J$14)/($J$11-$J$12)/($J$11-$J$13)/($J$11-$J$14)+$K$12*(Q-$J$11)*(Q-$J$13)*(Q-$J$14)/($J$12-$J$11)/($J$12-$J$13) /($J$12-$J$14)+$K$13*(Q-$J$11)*(Q-$J$12)*(Q-$J$14)/($J$13-$J$11)/($J$13-$J$12) /($J$13-$J$14)+$K$14*(Q-$J$11)*(Q-$J$12)*(Q-$J$13)/($J$14-$J$11)/($J$14-$J$12) /($J$14-$J$13) -> 0.4565236875 | W131: =-$K$11*(Q-$J$12)*(Q-$J$13)*(Q-$J$14)*(Q-$J$15)/($J$11-$J$12)/($J$11-$J$13)/($J$11-$J$14)/($J$11-$J$15) +$K$12*(Q-$J$11)*(Q-$J$13)*(Q-$J$14)*(Q-$J$15)/($J$22-$J$11)/($J$12-$J$13)/($J$12-$J$14)/($J$12-$J$15) +$K$13*(Q-$J$11)*(Q-$J$12)*(Q-$J$14)*(Q-$J$15)/($J$13-$J$11)/($J$13-$J$12)/($J$13-$J$14)/($J$13-$J$15) +$K$14*(Q-$J$11)*(Q-$J$12)*(Q-$J$13)*(Q-$J$15)/($J$14-$J$11)/($J$14-$J$12)/($J$14-$J$13)/($J$14-$J$15)+$K$15*(Q-$J$11)*(Q-$J$12)*(Q-$J$13)*(Q-$J$14)/($J$15-$J$11)/($J$15-$J$12)/($J$15-$J$31)/($J$15-$J$14) -> 0.2738857757 | X131: =$K$11*(Q-$J$12)*(Q-$J$13)*(Q-$J$14)*(Q-$J$15)*(Q-$J$16)/($J$11-$J$12)/($J$11-$J$13)/($J$11-$J$14)/($J$11-$J$15)/($J$11-$J$16)+$K$12*(Q-$J$11)*(Q-$J$13)*(Q-$J$14)*(Q-$J$15)*(Q-$J$16)/($J$12-$J$11)/($J$12-$J$13)/($J$12-$J$14)/($J$12-$J$15)/($J$12-$J$16)+$K$13*(Q-$J$11)*(Q-$J$12)*(Q-$J$14)*(Q-$J$15)*(Q-$J$16)/($J$13-$J$11)/($J$13-$J$12)/($J$13-$J$14)/($J$13-$J$15)/($J$13-$J$16)+$K$14*(Q-$J$11)*(Q-$J$12)*(Q-$J$13)*(Q-$J$15)*(Q-$J$16)/($J$14-$J$11)/($J$14-$J$12)/($J$14-$J$13)/($J$14-$J$15)/($J$14-$J$16)+$K$15*(Q-$J$11)*(Q-$J$12)*(Q-$J$13)*(Q-$J$14)*(Q-$J$16)/($J$15-$J$11)/($J$15-$J$12)/($J$15-$J$13)/($J$15-$J$14)/($J$15-$J$16)+$K$16*(Q-$J$11)*(Q-$J$12)*(Q-$J$13)*(Q-$J$14)*(Q-J$15)/($J$16-$J$11)/($J$16-$J$12)/($J$16-$J$13)/($J$16-$J$14)/($J$16-$J$15) -> 0.4733423264 | Y131: =$K$11*(Q-$J$12)*(Q-$J$13)*(Q-$J$14)*(Q-$J$15)*(Q-$J$16)*(Q-$J$17)/($J$11-$J$12)/($J$11-$J$13)/($J$11-$J$14)/($J$11-$J$15)/($J$11-$J$16) /($J$11-$J$17)+$K$12*(Q-$J$11)*(Q-$J$13)*(Q-$J$14)*(Q-$J$15)*(Q-$J$16)*(Q-$J$17)/($J$12-$J$11)/($J$12-$J$13)/($J$12-$J$14)/($J$12-$J$15)/($J$12-$J$16) /($J$12-$J$17)+$K$13*(Q-$J$11)*(Q-$J$12)*(Q-$J$14)*(Q-$J$15)*(Q-$J$16)*(Q-$J$17)/($J$13-$J$11)/($J$13-$J$12)/($J$13-$J$14)/($J$13-$J$15)/($J$13-$J$16) /($J$13-$J$17)+$K$14*(Q-$J$11)*(Q-$J$12)*(Q-$J$13)*(Q-$J$15)*(Q-$J$16)*(Q-$J$17)/($J$14-$J$11)/($J$14-$J$12)/($J$14-$J$13)/($J$14-$J$15)/($J$14-$J$16) /($J$14-$J$17)+$K$15*(Q-$J$11)*(Q-$J$12)*(Q-$J$13)*(Q-$J$14)*(Q-$J$16)*(Q-$J$17)/($J$15-$J$11)/($J$15-$J$12)/($J$15-$J$13)/($J$15-$J$14)/($J$15-$J$16) /($J$15-$J$17)+$K$16*(Q-$J$11)*(Q-$J$12)*(Q-$J$13)*(Q-$J$14)*(Q-$J$15)*(Q-$J$17)/($J$16-$J$11)/($J$16-$J$12)/($J$16-$J$13)/($J$16-$J$14)/($J$16-$J$15) /($J$16-$J$17)+$K$17*(Q-$J$11)*(Q-$J$12)*(Q-$J$13)*(Q-$J$14)*(Q-$J$15)*(Q-$J$16)/($J$17-$J$11)/($J$17-$J$12)/($J$17-$J$13)/($J$17-$J$14)/($J$17-$J$15) /($J$17-$J$16) -> 0.4711989952 | Z131: 0.2738857757
C132: -0.3566084788 | D132: -0.654270012 | E132: 0.480277349 | M132: -0.686741473 | N132: -0.6605795375 | O132: -0.6528048975 | P132: -0.6528048975 | Q132: -0.6540945737 | R132: -0.6546019634 | S132: -0.65280 | T132: 0.4816574775 | U132: 0.4538739798 | V132: 0.4684030178 | W132: 0.2864280113 | X132: 0.4872110169 | Y132: 0.4848293159 | Z132: =IF(n=1,T132,IF(n=2,U132,IF(n=3,V132,IF(n=4,W132,IF(n=5,X132,Y132))))) -> 0.2864280113
C133: =C132+B$12 -> -0.3516209476 | D133: -0.6466938358 | E133: 0.4933470386 | M133: -0.6832225514 | N133: -0.6537253861 | O133: -0.6450822017 | P133: -0.6450822017 | Q133: -0.646500361 | R133: -0.6470565114 | S133: -0.64508 | T133: 0.4953700894 | U133: 0.4640446384 | V133: 0.4801967888 | W133: 0.2990579493 | X133: 0.5009439616 | Y133: 0.4983333767 | Z133: 0.2990579493
C134: -0.3466334165 | D134: -0.639053313 | E134: 0.5063062801 | M134: -0.6797036298 | N134: -0.6468035829 | O134: -0.6373000365 | P134: -0.6373000365 | Q134: -0.6388423069 | R134: -0.639445185 | S134: -0.63730 | T134: 0.5090827012 | U134: 0.4741434522 | V134: 0.4919034239 | W134: 0.3117672432 | X134: 0.5145380841 | Y134: 0.511708158 | Z134: 0.3117672432
C135: -0.3416458853 | D135: -0.6313492037 | E135: 0.5191521722 | M135: -0.6761847082 | N135: -0.639814128 | O135: -0.6294592454 | P135: -0.6294592454 | Q135: -0.6311211879 | R135: -0.6317687512 | S135: -0.62946 | T135: 0.5227953131 | U135: 0.484170421 | V135: 0.5035213469 | W135: 0.3245476389 | X135: 0.5279903693 | Y135: 0.5249506898 | Z135: 0.3245476389
C136: -0.3366583541 | D136: -0.6235822744 | E136: 0.5318818392 | M136: -0.6726657866 | N136: -0.6327570213 | O136: -0.621560672 | P136: -0.621560672 | Q136: -0.6233377861 | R136: -0.6240279849 | S136: -0.62156 | T136: 0.5365079249 | U136: 0.494125545 | V136: 0.5150489814 | W136: 0.3373909749 | X136: 0.5412978635 | Y136: 0.5380580515 | Z136: 0.3373909749
C137: -0.3316708229 | D137: -0.6157532981 | E137: 0.5444924311 | M137: -0.669146865 | N137: -0.625632263 | O137: -0.6136051597 | P137: -0.6136051597 | Q137: -0.615492889 | R137: -0.6162236691 | S137: -0.61361 | T137: 0.5502205368 | U137: 0.504008824 | V137: 0.5264847509 | W137: 0.350289182 | X137: 0.5544576733 | Y137: 0.5510273716 | Z137: 0.350289182
C138: -0.3266832918 | D138: -0.6078630537 | E138: 0.5569811248 | M138: -0.6656279434 | N138: -0.6184398529 | O138: -0.6055935523 | P138: -0.6055935523 | Q138: -0.6075872896 | R138: -0.6083565943 | S138: -0.60559 | T138: 0.5639331486 | U138: 0.5138202582 | V138: 0.5378270791 | W138: 0.3632342838 | X138: 0.5674669658 | Y138: 0.5638558281 | Z138: 0.3632342838
C139: -0.3216957606 | D139: -0.5999123263 | E139: 0.5693451242 | M139: -0.6621090218 | N139: -0.6111797911 | O139: -0.5975266931 | P139: -0.5975266931 | Q139: -0.5996217859 | R139: -0.6004275588 | S139: -0.59753 | T139: 0.5776457605 | U139: 0.5235598475 | V139: 0.5490743896 | W139: 0.3762183959 | X139: 0.5803229684 | Y139: 0.5765406486 | Z139: 0.3762183959
C140: -0.3167082294 | D140: -0.591901907 | E140: 0.5815816616 | M140: -0.6585901002 | N140: -0.6038520776 | O140: -0.5894054257 | P140: -0.5894054257 | Q140: -0.5915971814 | R140: -0.5924373679 | S140: -0.58941 | T140: 0.5913583723 | U140: 0.5332275918 | V140: 0.5602251061 | W140: 0.3892337268 | X140: 0.5930229682 | Y140: 0.5890791095 | Z140: 0.3892337268
C141: -0.3117206983 | D141: -0.5838325928 | E141: 0.5936879973 | M141: -0.6550711786 | N141: -0.5964567123 | O141: -0.5812305937 | P141: -0.5812305937 | Q141: -0.5835142846 | R141: -0.5843868348 | S141: -0.58123 | T141: 0.6050709841 | U141: 0.5428234913 | V141: 0.5712776521 | W141: 0.4022725773 | X141: 0.6055643116 | Y141: 0.6014685371 | Z141: 0.4022725773
C142: -0.3067331671 | D142: -0.5757051867 | E142: 0.6056614211 | M142: -0.651552257 | N142: -0.5889936954 | O142: -0.5730030406 | P142: -0.5730030406 | Q142: -0.5753739091 | R142: -0.5762767794 | S142: -0.57300 | T142: 0.618783596 | U142: 0.5523475459 | V142: 0.5822304513 | W142: 0.4153273406 | X142: 0.6179444043 | Y142: 0.6137063064 | Z142: 0.4153273406
C143: -0.3017456359 | D143: -0.5675204973 | E143: 0.6174992524 | M143: -0.6480333354 | N143: -0.5814630267 | O143: -0.5647236099 | P143: -0.5647236099 | Q143: -0.5671768734 | R143: -0.5681080288 | S143: -0.56472 | T143: 0.6324962078 | U143: 0.5617997556 | V143: 0.5930819272 | W143: 0.4283905026 | X143: 0.6301607109 | Y143: 0.6257898423 | Z143: 0.4283905026
C144: -0.2967581047 | D144: -0.559279339 | E144: 0.6291988411 | M144: -0.6445144138 | N144: -0.5738647063 | O144: -0.5563931452 | P144: -0.5563931452 | Q144: -0.5589240011 | R144: -0.5598814169 | S144: -0.55639 | T144: 0.6462088197 | U144: 0.5711801204 | V144: 0.6038305036 | W144: 0.4414546414 | X144: 0.6422107543 | Y144: 0.6377166185 | Z144: 0.4414546414
C145: -0.2917705736 | D145: -0.5509825319 | E145: 0.6407575678 | M145: -0.6409954922 | N145: -0.5661987342 | O145: -0.54801249 | P145: -0.54801249 | Q145: -0.5506161202 | R145: -0.5515977843 | S145: -0.54801 | T145: 0.6599214315 | U145: 0.5804886403 | V145: 0.6144746041 | W145: 0.4545124279 | X145: 0.654092116 | Y145: 0.649484158 | Z145: 0.4545124279
C146: -0.2867830424 | D146: -0.5426309014 | E146: 0.652172845 | M146: -0.6374765706 | N146: -0.5584651103 | O146: -0.5395824878 | P146: -0.5395824878 | Q146: -0.5422540639 | R146: -0.5432579784 | S146: -0.53958 | T146: 0.6736340434 | U146: 0.5897253154 | V146: 0.6250126521 | W146: 0.4675566251 | X146: 0.665802435 | Y146: 0.6610900333 | Z146: 0.4675566251
C147: -0.2817955112 | D147: -0.5342252786 | E147: 0.6634421169 | M147: -0.633957649 | N147: -0.5506638347 | O147: -0.5311039823 | P147: -0.5311039823 | Q147: -0.5338386698 | R147: -0.5348628527 | S147: -0.53110 | T147: 0.6873466552 | U147: 0.5988901455 | V147: 0.6354430715 | W147: 0.4805800887 | X147: 0.6773394082 | Y147: 0.6725318656 | Z147: 0.4805800887
C148: -0.27680798 | D148: -0.5257664998 | E148: 0.6745628607 | M148: -0.6304387274 | N148: -0.5427949075 | O148: -0.5225778168 | P148: -0.5225778168 | Q148: -0.52537078 | R148: -0.5264132674 | S148: -0.52258 | T148: 0.7010592671 | U148: 0.6079831307 | V148: 0.6457642857 | W148: 0.493575767 | X148: 0.6887007897 | Y148: 0.6838073255 | Z148: 0.493575767
C149: -0.2718204489 | D149: -0.5172554066 | E149: 0.6855325867 | M149: -0.6269198058 | N149: -0.5348583284 | O149: -0.514004835 | P149: -0.514004835 | Q149: -0.5168512414 | R149: -0.5179100885 | S149: -0.51400 | T149: 0.7147718789 | U149: 0.6170042711 | V149: 0.6559747184 | W149: 0.5065367004 | X149: 0.6998843904 | Y149: 0.6949141328 | Z149: 0.5065367004
C150: -0.2668329177 | D150: -0.5086928461 | E150: 0.6963488391 | M150: -0.6234008842 | N150: -0.5268540977 | O150: -0.5053858804 | P150: -0.5053858804 | Q150: -0.5082809049 | R150: -0.5093541884 | S150: -0.50539 | T150: 0.7284844908 | U150: 0.6259535665 | V150: 0.6660727933 | W150: 0.5194560222 | X150: 0.710888078 | Y150: 0.7058500561 | Z150: 0.5194560222
C151: -0.2618453865 | D151: -0.50007967 | E151: 0.7070091964 | M151: -0.6198819626 | N151: -0.5187822153 | O151: -0.4967217966 | P151: -0.4967217966 | Q151: -0.4996606261 | R151: -0.500746445 | S151: -0.49672 | T151: 0.7421971026 | U151: 0.6348310171 | V151: 0.6760569339 | W151: 0.5323269579 | X151: 0.7217097767 | Y151: 0.7166129131 | Z151: 0.5323269579
C152: -0.2568578554 | D152: -0.4914167355 | E152: 0.717511272 | M152: -0.616363041 | N152: -0.5106426811 | O152: -0.488013427 | P152: -0.488013427 | Q152: -0.4909912648 | R152: -0.4920877424 | S152: -0.48801 | T152: 0.7559097144 | U152: 0.6436366227 | V152: 0.6859255639 | W152: 0.5451428256 | X152: 0.7323474664 | Y152: 0.7272005705 | Z152: 0.5451428256
C153: -0.2518703242 | D153: -0.4827049046 | E153: 0.7278527147 | M153: -0.6128441194 | N153: -0.5024354952 | O153: -0.4792616152 | P153: -0.4792616152 | Q153: -0.4822736847 | R153: -0.4833789699 | S153: -0.47926 | T153: 0.7696223263 | U153: 0.6523703835 | V153: 0.6956771068 | W153: 0.5578970357 | X153: 0.742799183 | Y153: 0.7376109439 | Z153: 0.5578970357
C154: -0.246882793 | D154: -0.473945044 | E154: 0.7380312094 | M154: -0.6093251978 | N154: -0.4941606576 | O154: -0.4704672048 | P154: -0.4704672048 | Q154: -0.4735087539 | R154: -0.4746210227 | S154: -0.47047 | T154: 0.7833349381 | U154: 0.6610322994 | V154: 0.7053099864 | W154: 0.5705830913 | X154: 0.7530630177 | Y154: 0.7478419977 | Z154: 0.5705830913
C155: -0.2418952618 | D155: -0.4651380253 | E155: 0.7480444773 | M155: -0.6058062762 | N155: -0.4858181682 | O155: -0.4616310392 | P155: -0.4616310392 | Q155: -0.4646973444 | R155: -0.4658148009 | S155: -0.46163 | T155: 0.79704755 | U155: 0.6696223704 | V155: 0.7148226262 | W155: 0.5831945879 | X155: 0.7631371167 | Y155: 0.7578917452 | Z155: 0.5831945879
C156: -0.2369077307 | D156: -0.456284725 | E156: 0.7578902767 | M156: -0.6022873547 | N156: -0.4774080272 | O156: -0.4527539621 | P156: -0.4527539621 | Q156: -0.4558403321 | R156: -0.4569612103 | S156: -0.45275 | T156: 0.8107601618 | U156: 0.6781405965 | V156: 0.7242134498 | W156: 0.5957252134 | X156: 0.7730196811 | Y156: 0.7677582482 | Z156: 0.5957252134
C157: -0.2319201995 | D157: -0.4473860238 | E157: 0.7675664035 | M157: -0.5987684331 | N157: -0.4689302344 | O157: -0.4438368169 | P157: -0.4438368169 | Q157: -0.4469385969 | R157: -0.4480611615 | S157: -0.44384 | T157: 0.8244727737 | U157: 0.6865869777 | V157: 0.733480881 | W157: 0.6081687483 | X157: 0.7827089666 | Y157: 0.7774396176 | Z157: 0.6081687483
C158: -0.2269326683 | D158: -0.4384428073 | E158: 0.7770706913 | M158: -0.5952495115 | N158: -0.4603847899 | O158: -0.4348804473 | P158: -0.4348804473 | Q158: -0.4379930223 | R158: -0.4391155701 | S158: -0.43488 | T158: 0.8381853855 | U158: 0.694961514 | V158: 0.7426233431 | W158: 0.6205190654 | X158: 0.7922032827 | Y158: 0.7869340125 | Z158: 0.6205190654
C159: -0.2219451372 | D159: -0.4294559652 | E159: 0.7864010123 | M159: -0.5917305899 | N159: -0.4517716936 | O159: -0.4258856966 | P159: -0.4258856966 | Q159: -0.4290044955 | R159: -0.4301253566 | S159: -0.42589 | T159: 0.8518979974 | U159: 0.7032642054 | V159: 0.75163926 | W159: 0.6327701303 | X159: 0.8015009931 | Y159: 0.7962396408 | Z159: 0.6327701303
C160: -0.216957606 | D160: -0.4204263918 | E160: 0.7955552778 | M160: -0.5882116683 | N160: -0.4430909457 | O160: -0.4168534086 | P160: -0.4168534086 | Q160: -0.4199739076 | R160: -0.4210914461 | S160: -0.41685 | T160: 0.8656106092 | U160: 0.7114950519 | V160: 0.7605270553 | W160: 0.6449160006 | X160: 0.8106005148 | Y160: 0.8053547589 | Z160: 0.6449160006
C161: -0.2119700748 | D161: -0.4113549856 | E161: 0.8045314384 | M161: -0.5846927467 | N161: -0.434342546 | O161: -0.4077844266 | P161: -0.4077844266 | Q161: -0.410902153 | R161: -0.4120147683 | S161: -0.40778 | T161: 0.8793232211 | U161: 0.7196540536 | V161: 0.7692851524 | W161: 0.6569508268 | X161: 0.8195003181 | Y161: 0.8142776714 | Z161: 0.6569508268
C162: -0.2069825436 | D162: -0.4022426491 | E162: 0.8133274844 | M162: -0.5811738251 | N162: -0.4255264946 | O162: -0.3986795943 | P162: -0.3986795943 | Q162: -0.4017901295 | R162: -0.4028962575 | S162: -0.39868 | T162: 0.8930358329 | U162: 0.7277412103 | V162: 0.7779119751 | W162: 0.6688688517 | X162: 0.8281989263 | Y162: 0.8230067314 | Z162: 0.6688688517
C163: -0.2019950125 | D163: -0.3930902891 | E163: 0.8219414468 | M163: -0.5776549035 | N163: -0.4166427915 | O163: -0.3895397552 | P163: -0.3895397552 | Q163: -0.3926387384 | R163: -0.3937368519 | S163: -0.38954 | T163: 0.9067484447 | U163: 0.7357565221 | V163: 0.786405947 | W163: 0.6806644106 | X163: 0.8366949151 | Y163: 0.8315403402 | Z163: 0.6806644106
C164: -0.1970074813 | D164: -0.3838988161 | E164: 0.8303713969 | M164: -0.5741359819 | N164: -0.4076914367 | O164: -0.3803657528 | P164: -0.3803657528 | Q164: -0.3834488844 | R164: -0.3845374944 | S164: -0.38037 | T164: 0.9204610566 | U164: 0.7436999891 | V164: 0.7947654917 | W164: 0.6923319312 | X164: 0.8449869126 | Y164: 0.8398769473 | Z164: 0.6923319312
C165: -0.1920199501 | D165: -0.3746691448 | E165: 0.8386154477 | M165: -0.5706170603 | N165: -0.3986724301 | O165: -0.3711584307 | P165: -0.3711584307 | Q165: -0.3742214751 | R165: -0.3752991315 | S165: -0.37116 | T165: 0.9341736684 | U165: 0.7515716111 | V165: 0.8029890329 | W165: 0.7038659338 | X165: 0.8530735989 | Y165: 0.8480150504 | Z165: 0.7038659338
C166: -0.187032419 | D166: -0.3654021936 | E166: 0.8466717534 | M166: -0.5670981387 | N166: -0.3895857719 | O166: -0.3619186324 | P166: -0.3619186324 | Q166: -0.3649574216 | R166: -0.3660227139 | S166: -0.36192 | T166: 0.9478862803 | U166: 0.7593713883 | V166: 0.811074994 | W166: 0.7152610311 | X166: 0.8609537057 | Y166: 0.855953195 | Z166: 0.7152610311
C167: -0.1820448878 | D167: -0.3560988845 | E167: 0.8545385104 | M167: -0.5635792171 | N167: -0.3804314619 | O167: -0.3526472014 | P167: -0.3526472014 | Q167: -0.355657638 | R167: -0.3567091959 | S167: -0.35265 | T167: 0.9615988921 | U167: 0.7670993206 | V167: 0.8190217989 | W167: 0.7265119284 | X167: 0.868626016 | Y167: 0.8636899746 | Z167: 0.7265119284
C168: -0.1770573566 | D168: -0.3467601431 | E168: 0.8622139576 | M168: -0.5600602955 | N168: -0.3712095001 | O168: -0.3433449813 | P168: -0.3433449813 | Q168: -0.3463230411 | R168: -0.3473595355 | S168: -0.34334 | T168: 0.975311504 | U168: 0.774755408 | V168: 0.826827871 | W168: 0.7376134232 | X168: 0.876089364 | Y168: 0.8712240306 | Z168: 0.7376134232
C169: -0.1720698254 | D169: -0.3373868987 | E169: 0.8696963767 | M169: -0.5565413739 | N169: -0.3619198867 | O169: -0.3340128156 | P169: -0.3340128156 | Q169: -0.3369545508 | R169: -0.3379746945 | S169: -0.33401 | T169: 0.9890241158 | U169: 0.7823396504 | V169: 0.834491634 | W169: 0.7485604058 | X169: 0.8833426344 | Y169: 0.878554052 | Z169: 0.7485604058
C170: -0.1670822943 | D170: -0.327980084 | E170: 0.8769840924 | M170: -0.5530224523 | N170: -0.3525626215 | O170: -0.3246515478 | P170: -0.3246515478 | Q170: -0.32755309 | R170: -0.3285556378 | S170: -0.32465 | T170: 1.002736728 | U170: 0.789852048 | V170: 0.8420115115 | W170: 0.7593478587 | X170: 0.8903847624 | Y170: 0.8856787756 | Z170: 0.7593478587
C171: -0.1620947631 | D171: -0.318540635 | E171: 0.8840754733 | M171: -0.5495035307 | N171: -0.3431377046 | O171: -0.3152620216 | P171: -0.3152620216 | Q171: -0.318119584 | R171: -0.3191033337 | S171: -0.31526 | T171: 1.01644934 | U171: 0.7972926007 | V171: 0.8493859271 | W171: 0.7699708571 | X171: 0.8972147334 | Y171: 0.8925969856 | Z171: 0.7699708571
C172: -0.1571072319 | D172: -0.3090694908 | E172: 0.8909689318 | M172: -0.5459846091 | N172: -0.333645136 | O172: -0.3058450803 | P172: -0.3058450803 | Q172: -0.308654961 | R172: -0.3096187537 | S172: -0.30585 | T172: 1.030161951 | U172: 0.8046613086 | V172: 0.8566133046 | W172: 0.7804245686 | X172: 0.9038315825 | Y172: 0.8993075136 | Z172: 0.7804245686
C173: -0.1521197007 | D173: -0.2995675939 | E173: 0.8976629245 | M173: -0.5424656875 | N173: -0.3240849157 | O173: -0.2964015677 | P173: -0.2964015677 | Q173: -0.2991601518 | R173: -0.3001028722 | S173: -0.29640 | T173: 1.043874563 | U173: 0.8119581715 | V173: 0.8636920673 | W173: 0.7907042531 | X173: 0.9102343942 | Y173: 0.9058092387 | Z173: 0.7907042531
C174: -0.1471321696 | D174: -0.2900358896 | E174: 0.904155953 | M174: -0.5389467659 | N174: -0.3144570437 | O174: -0.2869323271 | P174: -0.2869323271 | Q174: -0.2896360894 | R174: -0.2905566668 | S174: -0.28693 | T174: 1.057587175 | U174: 0.8191831895 | V174: 0.8706206391 | W174: 0.8008052634 | X174: 0.9164223022 | Y174: 0.9121010871 | Z174: 0.8008052634
C175: -0.1421446384 | D175: -0.2804753265 | E175: 0.9104465635 | M175: -0.5354278443 | N175: -0.3047615199 | O175: -0.2774382022 | P175: -0.2774382022 | Q175: -0.2800837097 | R175: -0.2809811176 | S175: -0.27744 | T175: 1.071299787 | U175: 0.8263363626 | V175: 0.8773974435 | W175: 0.8107230442 | X175: 0.9223944891 | Y175: 0.9181820321 | Z175: 0.8107230442
C176: -0.1371571072 | D176: -0.2708868559 | E176: 0.9165333478 | M176: -0.5319089227 | N176: -0.2949983444 | O176: -0.2679200364 | P176: -0.2679200364 | Q176: -0.2705039505 | R176: -0.2713772075 | S176: -0.26792 | T176: 1.085012399 | U176: 0.8334176909 | V176: 0.8840209042 | W176: 0.8204531333 | X176: 0.928150186 | Y176: 0.9240510939 | Z176: 0.8204531333
C177: -0.1321695761 | D177: -0.2612714317 | E177: 0.9224149431 | M177: -0.5283900011 | N177: -0.2851675172 | O177: -0.2583786734 | P177: -0.2583786734 | Q177: -0.2608977522 | R177: -0.261745922 | S177: -0.25838 | T177: 1.098725011 | U177: 0.8404271742 | V177: 0.8904894447 | W177: 0.8299911604 | X177: 0.9336886722 | Y177: 0.9297073398 | Z177: 0.8299911604
C178: -0.1271820449 | D178: -0.2516300107 | E178: 0.9280900328 | M178: -0.5248710795 | N178: -0.2752690383 | O178: -0.2488149566 | P178: -0.2488149566 | Q178: -0.2512660572 | R178: -0.252088249 | S178: -0.24881 | T178: 1.112437622 | U178: 0.8473648127 | V178: 0.8968014886 | W178: 0.839332848 | X178: 0.9390092749 | Y178: 0.9351498837 | Z178: 0.839332848
C179: -0.1221945137 | D179: -0.2419635523 | E179: 0.9335573463 | M179: -0.5213521579 | N179: -0.2653029076 | O179: -0.2392297296 | P179: -0.2392297296 | Q179: -0.24160981 | R179: -0.2424051788 | S179: -0.23923 | T179: 1.126150234 | U179: 0.8542306062 | V179: 0.9029554597 | W179: 0.8484740111 | X179: 0.9441113689 | Y179: 0.9403778862 | Z179: 0.8484740111
C180: -0.1172069825 | D180: -0.2322730182 | E180: 0.9388156596 | M180: -0.5178332363 | N180: -0.2552691252 | O180: -0.2296238359 | P180: -0.2296238359 | Q180: -0.2319299572 | R180: -0.2326977035 | S180: -0.22962 | T180: 1.139862846 | U180: 0.8610245549 | V180: 0.9089497815 | W180: 0.8574105571 | X180: 0.9489943763 | Y180: 0.9453905542 | Z180: 0.8574105571
C181: -0.1122194514 | D181: -0.2225593727 | E181: 0.9438637955 | M181: -0.5143143147 | N181: -0.2451676911 | O181: -0.2199981191 | P181: -0.2199981191 | Q181: -0.2222274475 | R181: -0.2229668179 | S181: -0.22000 | T181: 1.153575458 | U181: 0.8677466587 | V181: 0.9147828776 | W181: 0.8661384858 | X181: 0.9536577662 | Y181: 0.9501871412 | Z181: 0.8661384858
C182: -0.1072319202 | D182: -0.2128235824 | E182: 0.9487006239 | M182: -0.5107953931 | N182: -0.2349986053 | O182: -0.2103534227 | P182: -0.2103534227 | Q182: -0.2125032311 | R182: -0.2132135182 | S182: -0.21035 | T182: 1.16728807 | U182: 0.8743969175 | V182: 0.9204531716 | W182: 0.8746538896 | X182: 0.9581010542 | Y182: 0.954766947 | Z182: 0.8746538896
C183: -0.102244389 | D183: -0.2030666159 | E183: 0.953325062 | M183: -0.5072764715 | N183: -0.2247618678 | O183: -0.2006905902 | P183: -0.2006905902 | Q183: -0.2027582603 | R183: -0.2034388029 | S183: -0.20069 | T183: 1.181000682 | U183: 0.8809753315 | V183: 0.9259590872 | W183: 0.8829529532 | X183: 0.9623238026 | Y183: 0.9591293172 | Z183: 0.8829529532
C184: -0.09725685786 | D184: -0.193289444 | E184: 0.9577360743 | M184: -0.5037575499 | N184: -0.2144574785 | O184: -0.1910104652 | P184: -0.1910104652 | Q184: -0.192993489 | R184: -0.1936436717 | S184: -0.19101 | T184: 1.194713294 | U184: 0.8874819006 | V184: 0.9312990481 | W184: 0.891031954 | X184: 0.9663256192 | Y184: 0.9632736436 | Z184: 0.891031954
C185: -0.09226932668 | D185: -0.1834930396 | E185: 0.9619326735 | M185: -0.5002386283 | N185: -0.2040854375 | O185: -0.1813138912 | P185: -0.1813138912 | Q185: -0.1832098727 | R185: -0.1838291265 | S185: -0.18131 | T185: 1.208425905 | U185: 0.8939166248 | V185: 0.9364714777 | W185: 0.8988872618 | X185: 0.970106158 | Y185: 0.9671993638 | Z185: 0.8988872618
C186: -0.08728179551 | D186: -0.1736783775 | E186: 0.9659139199 | M186: -0.4967197067 | N186: -0.1936457448 | O186: -0.1716017118 | P186: -0.1716017118 | Q186: -0.1734083685 | R186: -0.1739961702 | S186: -0.17160 | T186: 1.222138517 | U186: 0.9002795041 | V186: 0.9414747997 | W186: 0.9065153387 | X186: 0.9736651182 | Y186: 0.9709059611 | Z186: 0.9065153387
C187: -0.08229426434 | D187: -0.1638464342 | E187: 0.9696789224 | M187: -0.4932007851 | N187: -0.1831384004 | O187: -0.1618747705 | P187: -0.1618747705 | Q187: -0.163589935 | R187: -0.1641458073 | S187: -0.16187 | T187: 1.235851129 | U187: 0.9065705385 | V187: 0.9463074379 | W187: 0.9139127396 | X187: 0.977002244 | Y187: 0.9743929643 | Z187: 0.9139127396
C188: -0.07730673317 | D188: -0.153998188 | E188: 0.9732268379 | M188: -0.4896818635 | N188: -0.1725634042 | O188: -0.1521339108 | P188: -0.1521339108 | Q188: -0.1537555321 | R188: -0.1542790436 | S188: -0.15213 | T188: 1.249563741 | U188: 0.9127897281 | V188: 0.9509678156 | W188: 0.9210761117 | X188: 0.9801173246 | Y188: 0.9776599475 | Z188: 0.9210761117
C189: -0.072319202 | D189: -0.1441346189 | E189: 0.9765568723 | M189: -0.4861629419 | N189: -0.1619207563 | O189: -0.1423799762 | P189: -0.1423799762 | Q189: -0.1439061211 | R189: -0.1443968859 | S189: -0.14238 | T189: 1.263276353 | U189: 0.9189370727 | V189: 0.9554543567 | W189: 0.9280021945 | X189: 0.9830101935 | Y189: 0.9807065302 | Z189: 0.9280021945
C190: -0.06733167082 | D190: -0.1342567082 | E190: 0.9796682799 | M190: -0.4826440203 | N190: -0.1512104568 | O190: -0.1326138104 | P190: -0.1326138104 | Q190: -0.1340426645 | R190: -0.1345003421 | S190: -0.13261 | T190: 1.276988965 | U190: 0.9250125724 | V190: 0.9597654847 | W190: 0.9346878204 | X190: 0.9856807284 | Y190: 0.983532377 | Z190: 0.9346878204
C191: -0.06234413965 | D191: -0.1243654388 | E191: 0.9825603643 | M191: -0.4791250987 | N191: -0.1404325054 | O191: -0.1228362568 | P191: -0.1228362568 | Q191: -0.1241661259 | R191: -0.1245904212 | S191: -0.12284 | T191: 1.290701576 | U191: 0.9310162273 | V191: 0.9638996232 | W191: 0.9411299138 | X191: 0.988128851 | Y191: 0.9861371973 | Z191: 0.9411299138
C192: -0.05735660848 | D192: -0.1144617949 | E192: 0.985232478 | M192: -0.4756061771 | N192: -0.1295869024 | O192: -0.113048159 | P192: -0.113048159 | Q192: -0.1142774701 | R192: -0.1146681326 | S192: -0.11305 | T192: 1.304414188 | U192: 0.9369480372 | V192: 0.9678551958 | W192: 0.9473254919 | X192: 0.9903545262 | Y192: 0.9885207454 | Z192: 0.9473254919
C193: -0.05236907731 | D193: -0.1045467619 | E193: 0.9876840227 | M193: -0.4720872555 | N193: -0.1186736476 | O193: -0.1032503605 | P193: -0.1032503605 | Q193: -0.1043776627 | R193: -0.1047344869 | S193: -0.10325 | T193: 1.3181268 | U193: 0.9428080023 | V193: 0.9716306262 | W193: 0.9532716643 | X193: 0.9923577624 | Y193: 0.9906828201 | Z193: 0.9532716643
C194: -0.04738154613 | D194: -0.09462132649 | E194: 0.9899144497 | M194: -0.4685683339 | N194: -0.1076927412 | O194: -0.09344370487 | P194: -0.09344370487 | Q194: -0.09446767051 | R194: -0.09479049483 | S194: -0.09344 | T194: 1.331839412 | U194: 0.9485961225 | V194: 0.975224338 | W194: 0.9589656331 | X194: 0.9941386108 | Y194: 0.9926232646 | Z194: 0.9589656331
C195: -0.04239401496 | D195: =SIN(2*t) -> -0.0846864761 | E195: =COS(3*t) -> 0.9919232595 | M195: =$K$1*(Q-$J$2)/($J$1-$J$2)+$K$2*(Q-$J$1)/($J$2-$J$1) -> -0.4650494123 | N195: =$K$1*(Q-$J$2)*(Q-$J$3)/($J$1-$J$2)/($J$1-$J$3)+$K$2*(Q-$J$1)*(Q-$J$3)/($J$2-$J$1)/($J$2-$J$3)+$K$3*(Q-$J$1)*(Q-$J$2)/($J$3-$J$1)/($J$3-$J$2) -> -0.09664418296 | O195: =$K$1*(Q-$J$2)*(Q-$J$3)*(Q-$J$4)/($J$1-$J$2)/($J$1-$J$3)/($J$1-$J$4)+$K$2*(Q-$J$1)*(Q-$J$3)*(Q-$J$4)/($J$2-$J$1)/($J$2-$J$3) /($J$2-$J$4)+$K$3*(Q-$J$1)*(Q-$J$2)*(Q-$J$4)/($J$3-$J$1)/($J$3-$J$2) /($J$3-$J$4)+$K$4*(Q-$J$1)*(Q-$J$2)*(Q-$J$3)/($J$4-$J$1)/($J$4-$J$2) /($J$4-$J$3) -> -0.08362903562 | P195: =$K$1*(Q-$J$2)*(Q-$J$3)*(Q-$J$4)*(Q-$J$5)/($J$1-$J$2)/($J$1-$J$3)/($J$1-$J$4)/($J$1-$J$5) +$K$2*(Q-$J$1)*(Q-$J$3)*(Q-$J$4)*(Q-$J$5)/($J$2-$J$1)/($J$2-$J$3)/($J$2-$J$4)/($J$2-$J$5) +$K$3*(Q-$J$1)*(Q-$J$2)*(Q-$J$4)*(Q-$J$5)/($J$3-$J$1)/($J$3-$J$2)/($J$3-$J$4)/($J$3-$J$5) +$K$4*(Q-$J$1)*(Q-$J$2)*(Q-$J$3)*(Q-$J$5)/($J$4-$J$1)/($J$4-$J$2)/($J$4-$J$3)/($J$4-$J$5)+$K$5*(Q-$J$1)*(Q-$J$2)*(Q-$J$3)*(Q-$J$4)/($J$5-$J$1)/($J$5-$J$2)/($J$5-$J$3)/($J$5-$J$4) -> -0.08362903562 | Q195: =$K$1*(Q-$J$2)*(Q-$J$3)*(Q-$J$4)*(Q-$J$5)*(Q-$J$6)/($J$1-$J$2)/($J$1-$J$3)/($J$1-$J$4)/($J$1-$J$5)/($J$1-$J$6) +$K$2*(Q-$J$1)*(Q-$J$3)*(Q-$J$4)*(Q-$J$5)*(Q-$J$6)/($J$2-$J$1)/($J$2-$J$3)/($J$2-$J$4)/($J$2-$J$5)/($J$2-$J$6) +$K$3*(Q-$J$1)*(Q-$J$2)*(Q-$J$4)*(Q-$J$5)*(Q-$J$6)/($J$3-$J$1)/($J$3-$J$2)/($J$3-$J$4)/($J$3-$J$5)/($J$3-$J$6) +$K$4*(Q-$J$1)*(Q-$J$2) *(Q-$J$3)*(Q-$J$5)*(Q-$J$6)/($J$4-$J$1)/($J$4-$J$2)/($J$4-$J$3)/($J$4-$J$5)/($J$4-$J$6) +$K$5*(Q-$J$1)*(Q-$J$2) *(Q-$J$3)*(Q-$J$4)*(Q-$J$6)/($J$5-$J$1)/($J$5-$J$2)/($J$5-$J$3)/($J$5-$J$4)/($J$5-$J$6) +$K$6*(Q-$J$1)*(Q-$J$2) *(Q-$J$3)*(Q-$J$4)*(Q-$J$5)/($J$6-$J$1)/($J$6-$J$2)/($J$6-$J$3)/($J$6-$J$4)/($J$6-$J$5) -> -0.08454846087 | R195: =$K$1*(Q-$J$2)*(Q-$J$3)*(Q-$J$4)*(Q-$J$5)*(Q-$J$6)*(Q-$J$7)/($J$1-$J$2)/($J$1-$J$3)/($J$1-$J$4)/($J$1-$J$5)/($J$1-$J$6) /($J$1-$J$7)+$K$2*(Q-$J$1)*(Q-$J$3)*(Q-$J$4)*(Q-$J$5)*(Q-$J$6)*(Q-$J$7)/($J$2-$J$1)/($J$2-$J$3)/($J$2-$J$4)/($J$2-$J$5)/($J$2-$J$6) /($J$2-$J$7)+$K$3*(Q-$J$1)*(Q-$J$2)*(Q-$J$4)*(Q-$J$5)*(Q-$J$6)*(Q-$J$7)/($J$3-$J$1)/($J$3-$J$2)/($J$3-$J$4)/($J$3-$J$5)/($J$3-$J$6) /($J$3-$J$7)+$K$4*(Q-$J$1)*(Q-$J$2)*(Q-$J$3)*(Q-$J$5)*(Q-$J$6)*(Q-$J$7)/($J$4-$J$1)/($J$4-$J$2)/($J$4-$J$3)/($J$4-$J$5)/($J$4-$J$6) /($J$4-$J$7)+$K$5*(Q-$J$1)*(Q-$J$2)*(Q-$J$3)*(Q-$J$4)*(Q-$J$6)*(Q-$J$7)/($J$5-$J$1)/($J$5-$J$2)/($J$5-$J$3)/($J$5-$J$4)/($J$5-$J$6) /($J$5-$J$7)+$K$6*(Q-$J$1)*(Q-$J$2)*(Q-$J$3)*(Q-$J$4)*(Q-$J$5)*(Q-$J$7)/($J$6-$J$1)/($J$6-$J$2)/($J$6-$J$3)/($J$6-$J$4)/($J$6-$J$5) /($J$6-$J$7)+$K$7*(Q-$J$1)*(Q-$J$2)*(Q-$J$3)*(Q-$J$4)*(Q-$J$5)*(Q-$J$6)/($J$7-$J$1)/($J$7-$J$2)/($J$7-$J$3)/($J$7-$J$4)/($J$7-$J$5) /($J$7-$J$6) -> -0.08483716788 | S195: =IF(n=1,M195,IF(n=2,N195,IF(n=3,O195,IF(n=4,P195,IF(n=5,Q195,R195))))) -> -0.08363 | T195: =$K$11*(Q-$J$12)/($J$11-$J$12)+$K$12*(Q-$J$11)/($J$12-$J$11) -> 1.345552024 | U195: =$K$11*(Q-$J$12)*(Q-$J$13)/($J$11-$J$12)/($J$11-$J$13)+$K$12*(Q-$J$11)*(Q-$J$13)/($J$12-$J$11)/($J$12-$J$13)+$K$13*(Q-$J$11)*(Q-$J$12)/($J$13-$J$11)/($J$13-$J$12) -> 0.9543123977 | V195: =$K$11*(Q-$J$12)*(Q-$J$13)*(Q-$J$14)/($J$11-$J$12)/($J$11-$J$13)/($J$11-$J$14)+$K$12*(Q-$J$11)*(Q-$J$13)*(Q-$J$14)/($J$12-$J$11)/($J$12-$J$13) /($J$12-$J$14)+$K$13*(Q-$J$11)*(Q-$J$12)*(Q-$J$14)/($J$13-$J$11)/($J$13-$J$12) /($J$13-$J$14)+$K$14*(Q-$J$11)*(Q-$J$12)*(Q-$J$13)/($J$14-$J$11)/($J$14-$J$12) /($J$14-$J$13) -> 0.9786347548 | W195: =-$K$11*(Q-$J$12)*(Q-$J$13)*(Q-$J$14)*(Q-$J$15)/($J$11-$J$12)/($J$11-$J$13)/($J$11-$J$14)/($J$11-$J$15) +$K$12*(Q-$J$11)*(Q-$J$13)*(Q-$J$14)*(Q-$J$15)/($J$22-$J$11)/($J$12-$J$13)/($J$12-$J$14)/($J$12-$J$15) +$K$13*(Q-$J$11)*(Q-$J$12)*(Q-$J$14)*(Q-$J$15)/($J$13-$J$11)/($J$13-$J$12)/($J$13-$J$14)/($J$13-$J$15) +$K$14*(Q-$J$11)*(Q-$J$12)*(Q-$J$13)*(Q-$J$15)/($J$14-$J$11)/($J$14-$J$12)/($J$14-$J$13)/($J$14-$J$15)+$K$15*(Q-$J$11)*(Q-$J$12)*(Q-$J$13)*(Q-$J$14)/($J$15-$J$11)/($J$15-$J$12)/($J$15-$J$31)/($J$15-$J$14) -> 0.9644046928 | X195: =$K$11*(Q-$J$12)*(Q-$J$13)*(Q-$J$14)*(Q-$J$15)*(Q-$J$16)/($J$11-$J$12)/($J$11-$J$13)/($J$11-$J$14)/($J$11-$J$15)/($J$11-$J$16)+$K$12*(Q-$J$11)*(Q-$J$13)*(Q-$J$14)*(Q-$J$15)*(Q-$J$16)/($J$12-$J$11)/($J$12-$J$13)/($J$12-$J$14)/($J$12-$J$15)/($J$12-$J$16)+$K$13*(Q-$J$11)*(Q-$J$12)*(Q-$J$14)*(Q-$J$15)*(Q-$J$16)/($J$13-$J$11)/($J$13-$J$12)/($J$13-$J$14)/($J$13-$J$15)/($J$13-$J$16)+$K$14*(Q-$J$11)*(Q-$J$12)*(Q-$J$13)*(Q-$J$15)*(Q-$J$16)/($J$14-$J$11)/($J$14-$J$12)/($J$14-$J$13)/($J$14-$J$15)/($J$14-$J$16)+$K$15*(Q-$J$11)*(Q-$J$12)*(Q-$J$13)*(Q-$J$14)*(Q-$J$16)/($J$15-$J$11)/($J$15-$J$12)/($J$15-$J$13)/($J$15-$J$14)/($J$15-$J$16)+$K$16*(Q-$J$11)*(Q-$J$12)*(Q-$J$13)*(Q-$J$14)*(Q-J$15)/($J$16-$J$11)/($J$16-$J$12)/($J$16-$J$13)/($J$16-$J$14)/($J$16-$J$15) -> 0.9956971652 | Y195: =$K$11*(Q-$J$12)*(Q-$J$13)*(Q-$J$14)*(Q-$J$15)*(Q-$J$16)*(Q-$J$17)/($J$11-$J$12)/($J$11-$J$13)/($J$11-$J$14)/($J$11-$J$15)/($J$11-$J$16) /($J$11-$J$17)+$K$12*(Q-$J$11)*(Q-$J$13)*(Q-$J$14)*(Q-$J$15)*(Q-$J$16)*(Q-$J$17)/($J$12-$J$11)/($J$12-$J$13)/($J$12-$J$14)/($J$12-$J$15)/($J$12-$J$16) /($J$12-$J$17)+$K$13*(Q-$J$11)*(Q-$J$12)*(Q-$J$14)*(Q-$J$15)*(Q-$J$16)*(Q-$J$17)/($J$13-$J$11)/($J$13-$J$12)/($J$13-$J$14)/($J$13-$J$15)/($J$13-$J$16) /($J$13-$J$17)+$K$14*(Q-$J$11)*(Q-$J$12)*(Q-$J$13)*(Q-$J$15)*(Q-$J$16)*(Q-$J$17)/($J$14-$J$11)/($J$14-$J$12)/($J$14-$J$13)/($J$14-$J$15)/($J$14-$J$16) /($J$14-$J$17)+$K$15*(Q-$J$11)*(Q-$J$12)*(Q-$J$13)*(Q-$J$14)*(Q-$J$16)*(Q-$J$17)/($J$15-$J$11)/($J$15-$J$12)/($J$15-$J$13)/($J$15-$J$14)/($J$15-$J$16) /($J$15-$J$17)+$K$16*(Q-$J$11)*(Q-$J$12)*(Q-$J$13)*(Q-$J$14)*(Q-$J$15)*(Q-$J$17)/($J$16-$J$11)/($J$16-$J$12)/($J$16-$J$13)/($J$16-$J$14)/($J$16-$J$15) /($J$16-$J$17)+$K$17*(Q-$J$11)*(Q-$J$12)*(Q-$J$13)*(Q-$J$14)*(Q-$J$15)*(Q-$J$16)/($J$17-$J$11)/($J$17-$J$12)/($J$17-$J$13)/($J$17-$J$14)/($J$17-$J$15) /($J$17-$J$16) -> 0.9943419666 | Z195: 0.9644046928
C196: -0.03740648379 | D196: -0.07474319933 | E196: 0.9937100025 | M196: -0.4615304907 | N196: -0.08552797304 | O196: -0.0738071963 | P196: -0.0738071963 | Q196: -0.07462100204 | R196: -0.07487551781 | S196: -0.07381 | T196: 1.359264636 | U196: 0.9599568281 | V196: 0.9818603003 | W196: 0.9695862304 | X196: 0.9970335617 | Y196: 0.9958388577 | Z196: =IF(n=1,T196,IF(n=2,U196,IF(n=3,V196,IF(n=4,W196,IF(n=5,X196,Y196))))) -> 0.9695862304
C197: =C196+B$12 -> -0.03241895262 | D197: -0.06479248552 | E197: 0.9952742786 | M197: -0.4580115691 | N197: -0.0743441114 | O197: -0.06397903045 | P197: -0.06397903045 | Q197: -0.06468626293 | R197: -0.06490655666 | S197: -0.06398 | T197: 1.372977247 | U197: 0.9655294136 | V197: 0.9848993979 | W197: 0.9745077254 | X197: 0.9981479783 | Y197: 0.9971139135 | Z197: 0.9745077254
C198: -0.02743142145 | D198: -0.0548353248 | E198: 0.9966157376 | M198: -0.4544926475 | N198: -0.06309259803 | O198: -0.0541453816 | P198: -0.0541453816 | Q198: -0.05474521303 | R198: -0.05493129659 | S198: -0.05415 | T198: 1.386689859 | U198: 0.9710301542 | V198: 0.9877504715 | W198: 0.9791667497 | X198: 0.9990406347 | Y198: 0.9981671534 | Z198: 0.9791667497
C199: -0.02244389027 | D199: -0.04487270791 | E199: 0.9977340793 | M199: -0.4509737259 | N199: -0.05177343294 | O199: -0.0443070933 | P199: -0.0443070933 | Q199: -0.04479882236 | R199: -0.04495074985 | S199: -0.04431 | T199: 1.400402471 | U199: 0.9764590499 | V199: 0.9904119445 | W199: 0.9835609679 | X199: 0.9997117921 | Y199: 0.9989986403 | Z199: 0.9835609679
C200: -0.0174563591 | D200: -0.03490562613 | E200: 0.9986290532 | M200: -0.4474548043 | N200: -0.04038661614 | O200: -0.03446500908 | P200: -0.03446500908 | Q200: -0.03484806137 | R200: -0.03496592858 | S200: -0.03447 | T200: 1.414115083 | U200: 0.9818161007 | V200: 0.9928822406 | W200: 0.9876881368 | X200: 1.000161752 | Y200: 0.9996084805 | Z200: 0.9876881368
... 211 more rows

Sheet Defining Function
A1: Defining a Function in Excel
A3: Computers have very specific rules you must follow when defining a function. If you don't, the program will either not work at all or will work incorrectly.
A5: 1. The Variable used should be the one named in the instruction, usually x, though sometimes y, t, Q (for an angle theta),
A6: or even x and y (for a function of two variables).
A8: 2. Order of Operations: There five arithmetic operations, addition (+), subtraction (-), multiplication (*), division (/), and exponentiation or power (^). When computers see any of these operation symbols, they perform the indicated steps in a very particular order. First, the power is done. Second, products and quotients of adjacent terms is done. Third, and last, sums and differences of adjacent terms are done. So, in 10*x^3 + 5*x – 7, say with x = 2, the first pass only calculates 2^3 and ignores the multiplications and the sums and differences to calculate 2^3 = 8. The second pass looks at 10*8 + 5*2 – 7 and only does the multiplications, so it produces 80 + 10 - 7. The third pass looks at the +’s and –‘s to produce 80 + 10 – 7 = 83.
A10: 3. Parentheses If you need an operation involving more than two adjacent terms, as in Ö4^3 + 6^2, the computer would take the square root of 4 to produce 2^3 + 6^2; it would then cube the 2 and square the 6 to produce 8 + 36; and finally it would add the 8 and the 36 to get 44. If you actually wanted the square root of the entire expression, you would need to use parentheses, as in Ö(4^3 + 6^2) to tell the computer to do all the operations inside the parentheses before taking the square root. Therefore, it would calculate (4^3 + 6^2) = 64 + 36 = 100 and then take the square root of Ö100 = 10.
A12: 4. Built-In Functions Computer programs have built-in functions for most common algebraic functions. In Excel, the square root function is denoted by SQRT(…), so SQRT(100) = 10. Alternatively, you could enter it as 100^.5 or 100^(1/2); notice that parentheses are needed to have the ½ done first. The common trig functions are SIN (…), COS (…), and TAN (…), where the arguments are automatically interpreted as being in radians, not degrees. The logarithm to the base 10 is represented by LOG (…) and the logarithm with the base e, known as the natural logarithm, is LN (…). The corresponding exponential function with base e is EXP (x). If x is the variable, then each of these would be SQRT (x), SIN (x), COS (x), TAN (x), LOG (x) (for log with base 10 ), LN (x) (for log with base e ), and EXP (x).

Sheet Sheet3
